{"text_format":"1","workbook":"xlsx","n_sheets":7,"sheets":["Information","Betriebsdaten","Anlage - Stickstoff","Anlage - Gülle-Jaucheanfall","Rechnung","Stickstoffdaten","Gülle-Jaucheanfall-Daten"],"not_rendered":{"charts":0,"images":1,"macros":1,"external_links":0,"defined_names":11,"comments":0,"pivot_tables":0},"unopened":[],"bounds":{"document_bytes":16777216,"sheet_cells":100000,"rows_first":2000,"rows_last":500,"rows_between":2000,"halvings":0,"cell_chars":16384,"cell_head_chars":4096},"cells_cut":0,"cells_raw":0,"read":"whole","date_system":"1900"}

{"sheet":"Information","index":0,"n_rows":56,"n_cols":10,"rows_kept":56,"cut":false,"hidden":false,"merged":[[16,2,20,9],[51,5,51,6],[51,7,51,9],[52,2,52,4],[52,7,52,8],[22,2,23,9],[34,2,44,9],[1,2,1,5],[1,9,1,10],[2,2,2,5],[2,9,2,10],[55,2,55,4],[55,7,55,9],[53,2,53,4],[3,2,3,7],[25,2,28,9],[29,2,32,9],[54,2,54,4],[45,2,47,9],[10,2,15,9],[51,2,51,4],[5,2,5,9],[6,2,8,9]]}
[]
[null,null,"Ministerium für Landwirtschaft",null,null,null,null,null,null,"Mecklenburg"]
[null,null,"Umwelt und Verbraucherschutz",null,null,null,null,null,null,"Vorpommern"]
[null,null,"Fachinformation der LMS Landwirtschaftsberatung Zust. Stelle für Landwirtschaftl. Fachrecht u. Beratung"]
[]
[null,null,"Berechnung des Stickstoffanfalls                                                                                                  zur Kontrolle der Einhaltung der 170 kg/ha N nach DüV                                                                                                                                                                         mit Wirtschaftsdüngern tierischer Herkunft"]
[null,null,"Im Regelfall dürfen auf den bewirtschafteten landwirtschaftlichen Flächen im Durchschnitt eines Betriebes nur maximal 170 kg N/ha aus tierischen Wirtschaftsdüngern ausgebracht werden. Die Ausnahme – maximal 230 kg N/ha für intensiv bewirtschaftetes Grünland oder Feldgras - kann  unter Berücksichtigung weiterer zusätzlicher Auflagen bei den zuständigen Behörden beantragt werden.\n\n"]
[]
[]
[]
[null,null,"Mit der bereitgestellten Kalkulationstabelle können Sie für Ihren Betrieb berechnen,                                                                                                                                                            - ob die Grenze der Düngeverordnung von 170 kg/ha N eingehalten wird,                                                                                    - wie viel Stickstoff über Wirtschaftsdünger aus dem Betrieb zur Einhaltung der 170 kg/ha N abzugeben wäre,                                                                                                                                                       - wie viel Stickstoff aus Wirtschaftsdüngern von anderen Betrieben noch aufgenommen werden könnte, \n- in welchem Umfang der Viehbestand entsprechend der Flächenausstatung zu reduzieren wäre,                                                                                    - in welchem Maße die Flächenausstattung zu erweitern wäre, um den aktuellen Viehbestand zu halten.     (Füllen Sie hierzu bitte die Anlage-Stickstoff aus.)                     \n"]
[]
[]
[]
[]
[]
[null,null,"Bei der Nutzung der Kalkukationstabelle ist zu beachten, dass die Tierartengruppen aus der \"Anlage Tier-haltung zum Sammelantrag für Antragsteller aus Mecklenburg-Vorpommern\" übernommen werden können. Wenn die Tierartengruppen durch den Betrieb entsprechend den betrieblichen Haltungsformen oder der Fütterung weiter untersetzt werden können, ist es möglich, eine detailiertere Einordnung der einzelnen Tierartengruppen (nach rechts eingerückt) vorzunehmen. "]
[]
[]
[]
[]
[]
[null,null,"Sofern die Grenze von 170 kg/ha überschritten wird, kann unter Beachtung von § 4 Abs. 4 die Aufbringung von bis zu 230 kg/ha Stickstoff aus Wirtschaftsdüngern tierischer Herkunft genehmigt werden.                             "]
[]
[]
[null,null,"In die Berechnung der mit Wirtschaftsdüngern tierischer Herkunft aufgebrachten Stickstoffmengen von 170 kg/ha des Betriebes sind auch die zugeführten betriebsfremden Wirtschaftsdünger, wie z. B. Hühner-trockenkot, aufgenommene betriebsfremde Gülle oder der Gülleanteil in einem Gärrest, einzubeziehen."]
[]
[]
[]
[null,null,"Bei der Berechnung der zulässigen Mengen wurden die Verluste entsprechend Düngeverordnung, d. h. die Stall- und Lagerungs-, aber nicht die Ausbringungsverluste, berücksichtigt. Andere Werte können verwendet werden, wenn der Betrieb nachweislich von den allgemeinen Vorgaben abweicht. Der Nachweis ist gegenüber dem Amt für Landwirtschaft zu führen.\n\n"]
[]
[]
[]
[]
[null,null,"Bezugsfläche für die Berechnung der Obergrenzen ist die landwirtschaftlich genutzte Fläche des Betriebes. Hierunter fallen: \n1. alle landwirtschaftlich und gartenbaulich genutzten Flächen (einschließlich Grünland, Obstflächen, Baumschulen)\n2. auch aus der Erzeugung genommene Flächen, soweit diesen Düngemittel, Bodenhilfsstoffe,     Kultursubstrate oder Pflanzenhilfsmittel zugeführt werden. \nZur landwirtschaftlich genutzten Fläche zählen alle pflanzenbaulich genutzten Flächen, denen Nährstoffe über Düngemittel, Bodenhilfsstoffe, Kultursubstrate, Pflanzenhilfsmittel, Abfälle oder die legume Stickstoffbindung zugeführt oder über Pflanzen abgeführt werden, auch wenn für sie aufgrund von vertraglichen Vereinbarungen (z.B. Vertragsnaturschutz) die Düngung eingeschränkt ist. "]
[]
[]
[]
[]
[]
[]
[]
[]
[]
[]
[null,null,"Neben dem Stickstoffanfall aus Wirtschaftsdüngern kann mit der Kalkulationstabelle \"Anlage Gülle-Jaucheanfall\" auch der Lagerraumbedarf entsprechend der JGS-Verordnung berechnet werden.          (Füllen Sie hierzu bitte die Anlage-Gülle-Jaucheanfall aus.)"]
[]
[]
[]
[null,null,"Daten eingeben",null,"Daten werden berechnet"]
[]
[null,null,"Fachinformation: DüV-09-07",null,null,"Stand: 01.02.2010",null,"Bearbeiter: Dr. Kape, Dr. Pöplau, M.Sc. agr. Nawotke"]
[null,null,"Zust. Stelle für landwirtschaftl. ",null,null,null,null,"Tel.: 0381 20307-70",null,"Fax: 0381 20307-45"]
[null,null,"Fachrecht und Beratung (LFB)",null,null,null,null,"Mail:   lfb@lms-beratung.de"]
[null,null,"LMS-Landwirtschaftsberatung",null,null,null,null,"Internet: www.lms-beratung.de //"]
[null,null,"Graf-Lippe-Straße 1, 18059 Rostock",null,null,null,null,"Landwirtschaftliches Fachrecht & Beratung"]

{"sheet":"Betriebsdaten","index":1,"n_rows":59,"n_cols":9,"rows_kept":59,"cut":false,"hidden":false,"merged":[[4,1,4,5],[3,1,3,3],[2,6,2,7],[3,6,3,7],[35,2,35,6],[11,3,11,7],[13,3,13,7],[15,3,15,7],[17,3,17,7],[26,4,26,6],[19,3,19,7],[21,3,21,4],[21,6,21,7],[33,2,34,5],[32,1,32,2],[26,1,26,3],[22,3,22,4],[22,6,22,7],[24,3,24,7],[29,2,30,5],[48,1,48,6],[39,1,39,2],[37,1,37,2],[42,1,42,4],[43,1,43,5],[45,1,45,5],[46,1,46,6],[41,1,41,4],[47,1,47,5]]}
[]
[]
[null,"Ministerium für Landwirtschaft,",null,null,null,null,"Mecklenburg"]
[null,"Umwelt und Verbraucherschutz",null,null,null,null,"Vorpommern"]
[null,"Fachinformation der LMS Landwirtschaftsberatung Zust. Stelle für Landwirtschaftl. Fachrecht u. Beratung"]
[]
[null,"Ermittlung des Stickstoffanfalls aus  Wirtschaftsdüngern tierischer Art"]
[null,"und des Lagerraumbedarfs für flüssige Wirtschaftsdünger",null,null,null,null,null,{"$f":"TODAY()","v":"2023-09-27"}]
[null,"(Füllen Sie hierzu bitte zusätzlich die Anlagen 1 und 2 aus)"]
[null,"Daten eingeben",null,"Daten werden berechnet"]
[]
[null,"Betriebs-Nr.:"]
[]
[null,"Name des Betriebes"]
[]
[null,"Straße"]
[]
[null,"PLZ/Ort"]
[]
[null,"Ansprechpartner"]
[]
[null,"Telefon",null,null,null,"Handy"]
[null,"FAX",null,null,null,"e-mail"]
[]
[null,"Landkreis"]
[]
[null,"Landwirtschaftliche Nutzfläche (LN insg.)",null,null,"Flächenangaben (in ha, mit einer Dezimalstellen)",null,null,null,"ha"]
[]
[null,"davon Ackerland (AL):",null,null,null,null,null,null,"ha"]
[null,null,"davon stillgelegt/aus der Erzeugung genommen; \nohne Nährstoffzu- und -abfuhr"]
[null,null,null,null,null,null,null,null,"ha"]
[]
[null,"davon Grünland (GL):",null,null,null,null,null,null,"ha"]
[null,null,"davon stillgelegt/aus der Erzeugung genommen \noder Naturschutz ohne Nährstoffzu- und -abfuhr"]
[null,null,null,null,null,null,null,null,"ha"]
[null,null,"davon nicht bilanzierungspflichtig (Weide / < 100 kg/ha N aus Wi-Dung)",null,null,null,null,null,"ha"]
[]
[null,"Bilanzfläche gesamt",null,null,null,null,null,{"$f":"H27-H31-H35-H36","v":0},"ha"]
[null,null,null,null,null,{"$f":"H29+H33","v":0},{"$f":"IF(H27<>F39,\"Flächenangaben überprüfen\",\" \")","v":" "}]
[null,"Verfügbarer Lagerraum insgesamt ",null,null,null,null,null,null,"m3"]
[]
[null,"Stickstoffanfall aus Wirtschaftsdüngern tierischer Herkunft (Brutto)",null,null,null,null,null,{"$f":"Rechnung!G16","v":{"$error":"#DIV/0!"}},"kg/ha N"]
[null,"Stickstoffanfall aus Wirtschaftsdüngern tierischer Herkunft (Netto)",null,null,null,null,null,{"$f":"Rechnung!I16","v":{"$error":"#DIV/0!"}},"kg/ha N"]
[null,"Einhaltung der Obergrenze von 170 kg/ha N nach DüV § 4 Abs. 3 (Netto) ",null,null,null,null,null,{"$f":"IF(H43<171,\"ja\",\"nein\")","v":{"$error":"#DIV/0!"}}]
[]
[null,"Anfall flüssiger Wirtschaftsdünger in 6 Monaten (Brutto)",null,null,null,null,null,{"$f":"Rechnung!M30/2","v":0},"m3"]
[null,"Einhaltung der Lagerdauer  von 6 Monaten für den Brutto-Anfall von Wirtschaftsdüngern (JGSVO)",null,null,null,null,null,{"$f":"IF(H46<H40,\"ja\",\"nein\")","v":"nein"}]
[null,"Anfall flüssiger Wirtschaftsdünger in 6 Monaten (Netto (ohne Weide))",null,null,null,null,null,{"$f":"Rechnung!N30/2","v":0},"m3"]
[null,"Einhaltung der Lagerdauer  von 6 Monaten für den Netto-Anfall von Wirtschaftsdüngern (JGSVO)",null,null,null,null,null,{"$f":"IF(H48<H40,\"ja\",\"nein\")","v":"nein"}]
[]
[]
[null,"Lagerung von Gärrest aus nicht eigenem Anfall in 6 Monaten",null,null,null,null,null,{"$f":"Rechnung!N32/2","v":0},"m3"]
[null,"Lagerung sonstiger flüssiger organischer Dünger (Abwässer) in 6 Monaten",null,null,null,null,null,{"$f":"Rechnung!N36/2","v":0},"m3"]
[]
[]
[null,"Lagerung aller flüssigen organischen Düngemittel (Gülle, Jauche, Gärreste und Abwässer (Brutto)",null,null,null,null,null,{"$f":"Rechnung!M37/2","v":0},"m3"]
[null,"Einhaltung der Lagerdauer  von 6 Monaten für alle flüssigen organischen Düngemitteln (Brutto)",null,null,null,null,null,{"$f":"IF(H56<H40,\"ja\",\"nein\")","v":"nein"}]
[null,"Lagerung aller flüssigen organischen Düngemittel (Gülle, Jauche, Gärreste und Abwässer (Netto)",null,null,null,null,null,{"$f":"Rechnung!N37/2","v":0},"m3"]
[null,"Einhaltung der Lagerdauer  von 6 Monaten für alle flüssigen organischen Düngemitteln (Netto)",null,null,null,null,null,{"$f":"IF(H58<H40,\"ja\",\"nein\")","v":"nein"}]

{"sheet":"Anlage - Stickstoff","index":2,"n_rows":145,"n_cols":15,"rows_kept":145,"cut":false,"hidden":false,"merged":[[0,1,0,7],[35,1,35,2],[34,1,34,2],[36,1,36,2],[1,1,1,2],[3,1,3,2],[2,1,2,2],[34,6,34,7],[1,6,1,7],[1,8,1,11],[2,6,2,7],[2,8,2,9],[2,10,2,11],[37,1,37,2],[30,1,30,2],[31,1,31,2],[32,1,32,2],[33,1,33,2]]}
[null,"Anlage 1: Datenerfassung für den Stickstoffanfall aus Wirtschaftsdüngern tierischer Herkunft"]
[null,"Tierartengruppe (bitte durch klicken auf die Felder wählen)",null,null,null,null,"Tierbestand ",null,"N-Anfall aus tierischen Wirtschaftsdüngern"]
[null,null,null,null,"Einheit","N","Plätze",null,"N-Brutto",null,"N-Netto"]
[null,"Spalte B=Tierartengruppe          Spalte C=Untersetzung",null,null,null,"kg/Einheit","auf        Gülle","auf Stalldung","aus  Gülle","aus Stalldung","aus  Gülle","aus Stalldung"]
[null,null,null,{"$f":"IF(C5=\"\",1,VLOOKUP(C5,Stickstoffdaten!$A$7:$B$212,2,FALSE))","v":1},{"$f":"VLOOKUP($D5,Stickstoffdaten!$B$6:$D$212,2)","v":"kg/Platz"},{"$f":"VLOOKUP($D5,Stickstoffdaten!$B$6:$D$212,3)","v":0},null,null,{"$f":"IF(D5<139,ROUND(F5*G5,1),0)","v":0},{"$f":"IF(D5<139,ROUND(F5*H5,1),ROUND((G5+H5)*F5,1))","v":0},{"$f":"IF(I5>0,ROUND(I5*N5,1),0)","v":0},0,null,{"$f":"VLOOKUP($D5,Stickstoffdaten!$B$6:$F$212,4)","v":0},{"$f":"VLOOKUP($D5,Stickstoffdaten!$B$6:$F$210,5)","v":0}]
[null,null,null,{"$f":"IF(C6=\"\",1,VLOOKUP(C6,Stickstoffdaten!$A$7:$B$212,2,FALSE))","v":1},{"$f":"VLOOKUP($D6,Stickstoffdaten!$B$6:$D$210,2)","v":"kg/Platz"},{"$f":"VLOOKUP($D6,Stickstoffdaten!$B$6:$D$212,3)","v":0},null,null,{"$f":"IF(D6<139,ROUND(F6*G6,1),0)","v":0},{"$f":"IF(D6<139,ROUND(F6*H6,1),ROUND((G6+H6)*F6,1))","v":0},0,0,null,{"$f":"VLOOKUP($D6,Stickstoffdaten!$B$6:$F$212,4)","v":0},{"$f":"VLOOKUP($D6,Stickstoffdaten!$B$6:$F$210,5)","v":0}]
[null,null,null,{"$f":"IF(C7=\"\",1,VLOOKUP(C7,Stickstoffdaten!$A$7:$B$212,2,FALSE))","v":1},{"$f":"VLOOKUP($D7,Stickstoffdaten!$B$6:$D$210,2)","v":"kg/Platz"},{"$f":"VLOOKUP($D7,Stickstoffdaten!$B$6:$D$212,3)","v":0},null,null,0,0,0,0,null,{"$f":"VLOOKUP($D7,Stickstoffdaten!$B$6:$F$212,4)","v":0},{"$f":"VLOOKUP($D7,Stickstoffdaten!$B$6:$F$210,5)","v":0}]
[null,null,null,{"$f":"IF(C8=\"\",1,VLOOKUP(C8,Stickstoffdaten!$A$7:$B$212,2,FALSE))","v":1},{"$f":"VLOOKUP($D8,Stickstoffdaten!$B$6:$D$210,2)","v":"kg/Platz"},{"$f":"VLOOKUP($D8,Stickstoffdaten!$B$6:$D$212,3)","v":0},null,null,0,0,{"$f":"IF(I8>0,ROUND(I8*N8,1),0)","v":0},{"$f":"IF(J8>0,ROUND(J8*O8,1),0)","v":0},null,{"$f":"VLOOKUP($D8,Stickstoffdaten!$B$6:$F$212,4)","v":0},{"$f":"VLOOKUP($D8,Stickstoffdaten!$B$6:$F$210,5)","v":0}]
[null,null,null,{"$f":"IF(C9=\"\",1,VLOOKUP(C9,Stickstoffdaten!$A$7:$B$212,2,FALSE))","v":1},{"$f":"VLOOKUP($D9,Stickstoffdaten!$B$6:$D$210,2)","v":"kg/Platz"},{"$f":"VLOOKUP($D9,Stickstoffdaten!$B$6:$D$212,3)","v":0},null,null,0,0,0,0,null,{"$f":"VLOOKUP($D9,Stickstoffdaten!$B$6:$F$212,4)","v":0},{"$f":"VLOOKUP($D9,Stickstoffdaten!$B$6:$F$210,5)","v":0}]
[null,null,null,{"$f":"IF(C10=\"\",1,VLOOKUP(C10,Stickstoffdaten!$A$7:$B$212,2,FALSE))","v":1},{"$f":"VLOOKUP($D10,Stickstoffdaten!$B$6:$D$210,2)","v":"kg/Platz"},{"$f":"VLOOKUP($D10,Stickstoffdaten!$B$6:$D$212,3)","v":0},null,null,0,0,0,0,null,{"$f":"VLOOKUP($D10,Stickstoffdaten!$B$6:$F$212,4)","v":0},{"$f":"VLOOKUP($D10,Stickstoffdaten!$B$6:$F$210,5)","v":0}]
[null,null,null,{"$f":"IF(C11=\"\",1,VLOOKUP(C11,Stickstoffdaten!$A$7:$B$212,2,FALSE))","v":1},{"$f":"VLOOKUP($D11,Stickstoffdaten!$B$6:$D$210,2)","v":"kg/Platz"},{"$f":"VLOOKUP($D11,Stickstoffdaten!$B$6:$D$212,3)","v":0},null,null,0,0,0,0,null,{"$f":"VLOOKUP($D11,Stickstoffdaten!$B$6:$F$212,4)","v":0},{"$f":"VLOOKUP($D11,Stickstoffdaten!$B$6:$F$210,5)","v":0}]
[null,null,null,{"$f":"IF(C12=\"\",1,VLOOKUP(C12,Stickstoffdaten!$A$7:$B$212,2,FALSE))","v":1},{"$f":"VLOOKUP($D12,Stickstoffdaten!$B$6:$D$210,2)","v":"kg/Platz"},{"$f":"VLOOKUP($D12,Stickstoffdaten!$B$6:$D$212,3)","v":0},null,null,0,0,0,0,null,{"$f":"VLOOKUP($D12,Stickstoffdaten!$B$6:$F$212,4)","v":0},{"$f":"VLOOKUP($D12,Stickstoffdaten!$B$6:$F$210,5)","v":0}]
[null,null,null,{"$f":"IF(C13=\"\",1,VLOOKUP(C13,Stickstoffdaten!$A$7:$B$212,2,FALSE))","v":1},{"$f":"VLOOKUP($D13,Stickstoffdaten!$B$6:$D$210,2)","v":"kg/Platz"},{"$f":"VLOOKUP($D13,Stickstoffdaten!$B$6:$D$212,3)","v":0},null,null,0,0,0,0,null,{"$f":"VLOOKUP($D13,Stickstoffdaten!$B$6:$F$212,4)","v":0},{"$f":"VLOOKUP($D13,Stickstoffdaten!$B$6:$F$210,5)","v":0}]
[null,null,null,{"$f":"IF(C14=\"\",1,VLOOKUP(C14,Stickstoffdaten!$A$7:$B$212,2,FALSE))","v":1},{"$f":"VLOOKUP($D14,Stickstoffdaten!$B$6:$D$210,2)","v":"kg/Platz"},{"$f":"VLOOKUP($D14,Stickstoffdaten!$B$6:$D$212,3)","v":0},null,null,0,0,0,0,null,{"$f":"VLOOKUP($D14,Stickstoffdaten!$B$6:$F$212,4)","v":0},{"$f":"VLOOKUP($D14,Stickstoffdaten!$B$6:$F$210,5)","v":0}]
[null,null,null,{"$f":"IF(C15=\"\",1,VLOOKUP(C15,Stickstoffdaten!$A$7:$B$212,2,FALSE))","v":1},{"$f":"VLOOKUP($D15,Stickstoffdaten!$B$6:$D$210,2)","v":"kg/Platz"},{"$f":"VLOOKUP($D15,Stickstoffdaten!$B$6:$D$212,3)","v":0},null,null,0,0,0,0,null,{"$f":"VLOOKUP($D15,Stickstoffdaten!$B$6:$F$212,4)","v":0},{"$f":"VLOOKUP($D15,Stickstoffdaten!$B$6:$F$210,5)","v":0}]
[null,null,null,{"$f":"IF(C16=\"\",1,VLOOKUP(C16,Stickstoffdaten!$A$7:$B$212,2,FALSE))","v":1},{"$f":"VLOOKUP($D16,Stickstoffdaten!$B$6:$D$210,2)","v":"kg/Platz"},{"$f":"VLOOKUP($D16,Stickstoffdaten!$B$6:$D$212,3)","v":0},null,null,0,0,0,0,null,{"$f":"VLOOKUP($D16,Stickstoffdaten!$B$6:$F$212,4)","v":0},{"$f":"VLOOKUP($D16,Stickstoffdaten!$B$6:$F$210,5)","v":0}]
[null,null,null,{"$f":"IF(C17=\"\",1,VLOOKUP(C17,Stickstoffdaten!$A$7:$B$212,2,FALSE))","v":1},{"$f":"VLOOKUP($D17,Stickstoffdaten!$B$6:$D$210,2)","v":"kg/Platz"},{"$f":"VLOOKUP($D17,Stickstoffdaten!$B$6:$D$212,3)","v":0},null,null,0,0,{"$f":"IF(I17>0,ROUND(I17*N17,1),0)","v":0},{"$f":"IF(J17>0,ROUND(J17*O17,1),0)","v":0},null,{"$f":"VLOOKUP($D17,Stickstoffdaten!$B$6:$F$212,4)","v":0},{"$f":"VLOOKUP($D17,Stickstoffdaten!$B$6:$F$210,5)","v":0}]
[null,null,null,{"$f":"IF(C18=\"\",1,VLOOKUP(C18,Stickstoffdaten!$A$7:$B$212,2,FALSE))","v":1},{"$f":"VLOOKUP($D18,Stickstoffdaten!$B$6:$D$210,2)","v":"kg/Platz"},{"$f":"VLOOKUP($D18,Stickstoffdaten!$B$6:$D$212,3)","v":0},null,null,0,0,0,0,null,{"$f":"VLOOKUP($D18,Stickstoffdaten!$B$6:$F$212,4)","v":0},{"$f":"VLOOKUP($D18,Stickstoffdaten!$B$6:$F$210,5)","v":0}]
[null,null,null,{"$f":"IF(C19=\"\",1,VLOOKUP(C19,Stickstoffdaten!$A$7:$B$212,2,FALSE))","v":1},{"$f":"VLOOKUP($D19,Stickstoffdaten!$B$6:$D$210,2)","v":"kg/Platz"},{"$f":"VLOOKUP($D19,Stickstoffdaten!$B$6:$D$212,3)","v":0},null,null,0,0,0,0,null,{"$f":"VLOOKUP($D19,Stickstoffdaten!$B$6:$F$212,4)","v":0},{"$f":"VLOOKUP($D19,Stickstoffdaten!$B$6:$F$210,5)","v":0}]
[null,null,null,{"$f":"IF(C20=\"\",1,VLOOKUP(C20,Stickstoffdaten!$A$7:$B$212,2,FALSE))","v":1},{"$f":"VLOOKUP($D20,Stickstoffdaten!$B$6:$D$210,2)","v":"kg/Platz"},{"$f":"VLOOKUP($D20,Stickstoffdaten!$B$6:$D$212,3)","v":0},null,null,0,0,0,0,null,{"$f":"VLOOKUP($D20,Stickstoffdaten!$B$6:$F$212,4)","v":0},{"$f":"VLOOKUP($D20,Stickstoffdaten!$B$6:$F$210,5)","v":0}]
[null,null,null,{"$f":"IF(C21=\"\",1,VLOOKUP(C21,Stickstoffdaten!$A$7:$B$212,2,FALSE))","v":1},{"$f":"VLOOKUP($D21,Stickstoffdaten!$B$6:$D$210,2)","v":"kg/Platz"},{"$f":"VLOOKUP($D21,Stickstoffdaten!$B$6:$D$212,3)","v":0},null,null,0,0,0,0,null,{"$f":"VLOOKUP($D21,Stickstoffdaten!$B$6:$F$212,4)","v":0},{"$f":"VLOOKUP($D21,Stickstoffdaten!$B$6:$F$210,5)","v":0}]
[null,null,null,{"$f":"IF(C22=\"\",1,VLOOKUP(C22,Stickstoffdaten!$A$7:$B$212,2,FALSE))","v":1},{"$f":"VLOOKUP($D22,Stickstoffdaten!$B$6:$D$210,2)","v":"kg/Platz"},{"$f":"VLOOKUP($D22,Stickstoffdaten!$B$6:$D$212,3)","v":0},null,null,0,0,0,0,null,{"$f":"VLOOKUP($D22,Stickstoffdaten!$B$6:$F$212,4)","v":0},{"$f":"VLOOKUP($D22,Stickstoffdaten!$B$6:$F$210,5)","v":0}]
[null,null,null,{"$f":"IF(C23=\"\",1,VLOOKUP(C23,Stickstoffdaten!$A$7:$B$212,2,FALSE))","v":1},{"$f":"VLOOKUP($D23,Stickstoffdaten!$B$6:$D$210,2)","v":"kg/Platz"},{"$f":"VLOOKUP($D23,Stickstoffdaten!$B$6:$D$212,3)","v":0},null,null,0,0,0,0,null,{"$f":"VLOOKUP($D23,Stickstoffdaten!$B$6:$F$212,4)","v":0},{"$f":"VLOOKUP($D23,Stickstoffdaten!$B$6:$F$210,5)","v":0}]
[null,null,null,{"$f":"IF(C24=\"\",1,VLOOKUP(C24,Stickstoffdaten!$A$7:$B$212,2,FALSE))","v":1},{"$f":"VLOOKUP($D24,Stickstoffdaten!$B$6:$D$210,2)","v":"kg/Platz"},{"$f":"VLOOKUP($D24,Stickstoffdaten!$B$6:$D$212,3)","v":0},null,null,0,0,0,0,null,{"$f":"VLOOKUP($D24,Stickstoffdaten!$B$6:$F$212,4)","v":0},{"$f":"VLOOKUP($D24,Stickstoffdaten!$B$6:$F$210,5)","v":0}]
[null,null,null,{"$f":"IF(C25=\"\",1,VLOOKUP(C25,Stickstoffdaten!$A$7:$B$212,2,FALSE))","v":1},{"$f":"VLOOKUP($D25,Stickstoffdaten!$B$6:$D$210,2)","v":"kg/Platz"},{"$f":"VLOOKUP($D25,Stickstoffdaten!$B$6:$D$212,3)","v":0},null,null,0,0,0,0,null,{"$f":"VLOOKUP($D25,Stickstoffdaten!$B$6:$F$212,4)","v":0},{"$f":"VLOOKUP($D25,Stickstoffdaten!$B$6:$F$210,5)","v":0}]
[null,null,null,{"$f":"IF(C26=\"\",1,VLOOKUP(C26,Stickstoffdaten!$A$7:$B$212,2,FALSE))","v":1},{"$f":"VLOOKUP($D26,Stickstoffdaten!$B$6:$D$210,2)","v":"kg/Platz"},{"$f":"VLOOKUP($D26,Stickstoffdaten!$B$6:$D$212,3)","v":0},null,null,0,0,0,0,null,{"$f":"VLOOKUP($D26,Stickstoffdaten!$B$6:$F$212,4)","v":0},{"$f":"VLOOKUP($D26,Stickstoffdaten!$B$6:$F$210,5)","v":0}]
[null,null,null,{"$f":"IF(C27=\"\",1,VLOOKUP(C27,Stickstoffdaten!$A$7:$B$212,2,FALSE))","v":1},{"$f":"VLOOKUP($D27,Stickstoffdaten!$B$6:$D$210,2)","v":"kg/Platz"},{"$f":"VLOOKUP($D27,Stickstoffdaten!$B$6:$D$212,3)","v":0},null,null,0,0,0,0,null,{"$f":"VLOOKUP($D27,Stickstoffdaten!$B$6:$F$212,4)","v":0},{"$f":"VLOOKUP($D27,Stickstoffdaten!$B$6:$F$210,5)","v":0}]
[null,null,null,{"$f":"IF(C28=\"\",1,VLOOKUP(C28,Stickstoffdaten!$A$7:$B$212,2,FALSE))","v":1},{"$f":"VLOOKUP($D28,Stickstoffdaten!$B$6:$D$210,2)","v":"kg/Platz"},{"$f":"VLOOKUP($D28,Stickstoffdaten!$B$6:$D$212,3)","v":0},null,null,0,0,0,0,null,{"$f":"VLOOKUP($D28,Stickstoffdaten!$B$6:$F$212,4)","v":0},{"$f":"VLOOKUP($D28,Stickstoffdaten!$B$6:$F$210,5)","v":0}]
[null,null,null,{"$f":"IF(C29=\"\",1,VLOOKUP(C29,Stickstoffdaten!$A$7:$B$212,2,FALSE))","v":1},{"$f":"VLOOKUP($D29,Stickstoffdaten!$B$6:$D$210,2)","v":"kg/Platz"},{"$f":"VLOOKUP($D29,Stickstoffdaten!$B$6:$D$212,3)","v":0},null,null,0,0,0,0,null,{"$f":"VLOOKUP($D29,Stickstoffdaten!$B$6:$F$212,4)","v":0},{"$f":"VLOOKUP($D29,Stickstoffdaten!$B$6:$F$210,5)","v":0}]
[]
[null,"weitere Tierarten (N-Ausscheidungen belegen)"]
[null,null,null,null,"kg/Platz",null,null,null,{"$f":"ROUND(F32*G32,1)","v":0},{"$f":"ROUND(F32*H32,1)","v":0},{"$f":"ROUND(I32*0.85,1)","v":0},{"$f":"ROUND(J32*0.7,1)","v":0}]
[null,null,null,null,"kg/Platz",null,null,null,{"$f":"ROUND(F33*G33,1)","v":0},{"$f":"ROUND(F33*H33,1)","v":0},{"$f":"ROUND(I33*0.85,1)","v":0},{"$f":"ROUND(J33*0.7,1)","v":0}]
[null,null,null,null,"kg/Platz",null,null,null,{"$f":"ROUND(F34*G34,1)","v":0},{"$f":"ROUND(F34*H34,1)","v":0},{"$f":"ROUND(I34*0.85,1)","v":0},{"$f":"ROUND(J34*0.7,1)","v":0}]
[null,"Zukauf von Wirtschaftsdüngern tier. Herkunft",null,null,null,null,"kg N/t N in Frischmasse"]
[null,null,null,null,"t ",null,null,null,null,null,{"$f":"ROUND(G36*F36,1)","v":0},{"$f":"ROUND(H36*F36,1)","v":0}]
[null,null,null,null,"t ",null,null,null,null,null,{"$f":"ROUND(G37*F37,1)","v":0},{"$f":"ROUND(H37*F37,1)","v":0}]
[null,null,null,null,"t ",null,null,null,null,null,{"$f":"ROUND(G38*F38,1)","v":0},{"$f":"ROUND(H38*F38,1)","v":0}]
[]
[null,null,null,null,null,null,null,null,{"$f":"SUM(I5:I38)","v":0}]
[]
[]
[]
[]
[]
[]
[]
[]
[]
[]
[]
[]
[]
[]
[]
[]
[]
[]
[]
[]
[]
[]
[]
[]
[]
[]
[]
[]
[]
[]
[]
[]
[]
[]
[]
[]
[]
[]
[]
[]
[]
[]
[]
[]
[]
[]
[]
[]
[]
[]
[]
[]
[]
[]
[]
[]
[]
[]
[]
[]
[]
[]
[]
[]
[]
[]
[]
[]
[]
[]
[]
[]
[]
[]
[]
[]
[]
[]
[]
[]
[]
[]
[]
[]
[]
[]
[]
[]
[]
[]
[]
[]
[]
[]
[]
[]
[]
[]
[]
[]
[]
[]
[]
[]
[null,null,null,1]

{"sheet":"Anlage - Gülle-Jaucheanfall","index":3,"n_rows":39,"n_cols":17,"rows_kept":39,"cut":false,"hidden":false,"merged":[[36,1,36,2],[37,1,37,2],[38,1,38,2],[0,1,0,6],[32,1,32,2],[33,1,33,2],[34,1,34,2],[35,1,35,2],[28,1,28,2],[29,1,29,2],[30,1,30,2],[31,1,31,2],[1,1,1,2],[2,1,2,2],[3,1,3,2],[27,1,27,2],[1,4,3,4],[1,6,2,6],[1,5,2,5],[3,5,3,6],[1,9,1,10],[1,13,1,16],[2,9,2,10],[2,11,2,12],[2,13,2,14],[2,15,2,16],[1,11,1,12]]}
[null,"Anlage 2: Datenerfassung für den Wirtschaftsdüngeranfall aus Wirtschaftsdüngern tierischer Art"]
[null,"Tierartengruppe (bitte durch klicken auf die Felder wählen)",null,null,"Einheit","Gülle-anfall ","Jauche-anfall","Gülle","Gülle","Tierbestand ",null,"Weidetage",null,"Anfall in 12 Monaten cbm"]
[null,null,null,null,null,null,null,"TM %","TM %","Plätze",null,"Anzahl Tage",null,"brutto",null,"netto (ohne Weide)"]
[null,"Spalte B=Tierartengruppe          Spalte C=Untersetzung",null,null,null,"in 12 Monaten je Stallplatz cbm",null,"Stan-dard","Ist","auf     Gülle","auf Dung","auf     Gülle","auf Dung","Gülle","Jauche","Gülle","Jauche"]
[null,null,null,{"$f":"IF(C5=\"\",1,VLOOKUP(C5,'Gülle-Jaucheanfall-Daten'!$A$7:$B$143,2,FALSE))","v":1},{"$f":"VLOOKUP($D5,'Gülle-Jaucheanfall-Daten'!$B$6:$E$148,2)","v":"cbm/Platz"},{"$f":"VLOOKUP($D5,'Gülle-Jaucheanfall-Daten'!$B$6:$H$148,3)","v":0},{"$f":"VLOOKUP($D5,'Gülle-Jaucheanfall-Daten'!$B$6:$H$148,4)","v":0},{"$f":"VLOOKUP($D5,'Gülle-Jaucheanfall-Daten'!$B$6:$H$148,7)","v":0},null,null,null,null,null,{"$f":"IF(I5>0,ROUND(+F5*J5*H5/I5,1),ROUND(F5*J5,1))","v":0},{"$f":"ROUND(G5*K5,1)","v":0},{"$f":"N5/365*(365-L5)","v":0},{"$f":"ROUND(O5/365*(365-M5),1)","v":0}]
[null,null,null,{"$f":"IF(C6=\"\",1,VLOOKUP(C6,'Gülle-Jaucheanfall-Daten'!$A$7:$B$143,2,FALSE))","v":1},{"$f":"VLOOKUP($D6,'Gülle-Jaucheanfall-Daten'!$B$6:$E$148,2)","v":"cbm/Platz"},{"$f":"VLOOKUP($D6,'Gülle-Jaucheanfall-Daten'!$B$6:$H$148,3)","v":0},{"$f":"VLOOKUP($D6,'Gülle-Jaucheanfall-Daten'!$B$6:$H$148,4)","v":0},{"$f":"VLOOKUP($D6,'Gülle-Jaucheanfall-Daten'!$B$6:$H$148,7)","v":0},null,null,null,null,null,{"$f":"IF(I6>0,ROUND(+F6*J6*H6/I6,1),ROUND(F6*J6,1))","v":0},0,0,0]
[null,null,null,{"$f":"IF(C7=\"\",1,VLOOKUP(C7,'Gülle-Jaucheanfall-Daten'!$A$7:$B$143,2,FALSE))","v":1},{"$f":"VLOOKUP($D7,'Gülle-Jaucheanfall-Daten'!$B$6:$E$148,2)","v":"cbm/Platz"},{"$f":"VLOOKUP($D7,'Gülle-Jaucheanfall-Daten'!$B$6:$H$148,3)","v":0},{"$f":"VLOOKUP($D7,'Gülle-Jaucheanfall-Daten'!$B$6:$H$148,4)","v":0},{"$f":"VLOOKUP($D7,'Gülle-Jaucheanfall-Daten'!$B$6:$H$148,7)","v":0},null,null,null,null,null,0,0,0,0]
[null,null,null,{"$f":"IF(C8=\"\",1,VLOOKUP(C8,'Gülle-Jaucheanfall-Daten'!$A$7:$B$143,2,FALSE))","v":1},{"$f":"VLOOKUP($D8,'Gülle-Jaucheanfall-Daten'!$B$6:$E$148,2)","v":"cbm/Platz"},{"$f":"VLOOKUP($D8,'Gülle-Jaucheanfall-Daten'!$B$6:$H$148,3)","v":0},{"$f":"VLOOKUP($D8,'Gülle-Jaucheanfall-Daten'!$B$6:$H$148,4)","v":0},{"$f":"VLOOKUP($D8,'Gülle-Jaucheanfall-Daten'!$B$6:$H$148,7)","v":0},null,null,null,null,null,0,0,0,0]
[null,null,null,{"$f":"IF(C9=\"\",1,VLOOKUP(C9,'Gülle-Jaucheanfall-Daten'!$A$7:$B$143,2,FALSE))","v":1},{"$f":"VLOOKUP($D9,'Gülle-Jaucheanfall-Daten'!$B$6:$E$148,2)","v":"cbm/Platz"},{"$f":"VLOOKUP($D9,'Gülle-Jaucheanfall-Daten'!$B$6:$H$148,3)","v":0},{"$f":"VLOOKUP($D9,'Gülle-Jaucheanfall-Daten'!$B$6:$H$148,4)","v":0},{"$f":"VLOOKUP($D9,'Gülle-Jaucheanfall-Daten'!$B$6:$H$148,7)","v":0},null,null,null,null,null,0,0,0,0]
[null,null,null,{"$f":"IF(C10=\"\",1,VLOOKUP(C10,'Gülle-Jaucheanfall-Daten'!$A$7:$B$143,2,FALSE))","v":1},{"$f":"VLOOKUP($D10,'Gülle-Jaucheanfall-Daten'!$B$6:$E$148,2)","v":"cbm/Platz"},{"$f":"VLOOKUP($D10,'Gülle-Jaucheanfall-Daten'!$B$6:$H$148,3)","v":0},{"$f":"VLOOKUP($D10,'Gülle-Jaucheanfall-Daten'!$B$6:$H$148,4)","v":0},{"$f":"VLOOKUP($D10,'Gülle-Jaucheanfall-Daten'!$B$6:$H$148,7)","v":0},null,null,null,null,null,0,0,0,0]
[null,null,null,{"$f":"IF(C11=\"\",1,VLOOKUP(C11,'Gülle-Jaucheanfall-Daten'!$A$7:$B$143,2,FALSE))","v":1},{"$f":"VLOOKUP($D11,'Gülle-Jaucheanfall-Daten'!$B$6:$E$148,2)","v":"cbm/Platz"},{"$f":"VLOOKUP($D11,'Gülle-Jaucheanfall-Daten'!$B$6:$H$148,3)","v":0},{"$f":"VLOOKUP($D11,'Gülle-Jaucheanfall-Daten'!$B$6:$H$148,4)","v":0},{"$f":"VLOOKUP($D11,'Gülle-Jaucheanfall-Daten'!$B$6:$H$148,7)","v":0},null,null,null,null,null,0,0,0,0]
[null,null,null,{"$f":"IF(C12=\"\",1,VLOOKUP(C12,'Gülle-Jaucheanfall-Daten'!$A$7:$B$143,2,FALSE))","v":1},{"$f":"VLOOKUP($D12,'Gülle-Jaucheanfall-Daten'!$B$6:$E$148,2)","v":"cbm/Platz"},{"$f":"VLOOKUP($D12,'Gülle-Jaucheanfall-Daten'!$B$6:$H$148,3)","v":0},{"$f":"VLOOKUP($D12,'Gülle-Jaucheanfall-Daten'!$B$6:$H$148,4)","v":0},{"$f":"VLOOKUP($D12,'Gülle-Jaucheanfall-Daten'!$B$6:$H$148,7)","v":0},null,null,null,null,null,0,0,0,0]
[null,null,null,{"$f":"IF(C13=\"\",1,VLOOKUP(C13,'Gülle-Jaucheanfall-Daten'!$A$7:$B$143,2,FALSE))","v":1},{"$f":"VLOOKUP($D13,'Gülle-Jaucheanfall-Daten'!$B$6:$E$148,2)","v":"cbm/Platz"},{"$f":"VLOOKUP($D13,'Gülle-Jaucheanfall-Daten'!$B$6:$H$148,3)","v":0},{"$f":"VLOOKUP($D13,'Gülle-Jaucheanfall-Daten'!$B$6:$H$148,4)","v":0},{"$f":"VLOOKUP($D13,'Gülle-Jaucheanfall-Daten'!$B$6:$H$148,7)","v":0},null,null,null,null,null,0,0,0,0]
[null,null,null,{"$f":"IF(C14=\"\",1,VLOOKUP(C14,'Gülle-Jaucheanfall-Daten'!$A$7:$B$143,2,FALSE))","v":1},{"$f":"VLOOKUP($D14,'Gülle-Jaucheanfall-Daten'!$B$6:$E$148,2)","v":"cbm/Platz"},{"$f":"VLOOKUP($D14,'Gülle-Jaucheanfall-Daten'!$B$6:$H$148,3)","v":0},{"$f":"VLOOKUP($D14,'Gülle-Jaucheanfall-Daten'!$B$6:$H$148,4)","v":0},{"$f":"VLOOKUP($D14,'Gülle-Jaucheanfall-Daten'!$B$6:$H$148,7)","v":0},null,null,null,null,null,0,0,0,0]
[null,null,null,{"$f":"IF(C15=\"\",1,VLOOKUP(C15,'Gülle-Jaucheanfall-Daten'!$A$7:$B$143,2,FALSE))","v":1},{"$f":"VLOOKUP($D15,'Gülle-Jaucheanfall-Daten'!$B$6:$E$148,2)","v":"cbm/Platz"},{"$f":"VLOOKUP($D15,'Gülle-Jaucheanfall-Daten'!$B$6:$H$148,3)","v":0},{"$f":"VLOOKUP($D15,'Gülle-Jaucheanfall-Daten'!$B$6:$H$148,4)","v":0},{"$f":"VLOOKUP($D15,'Gülle-Jaucheanfall-Daten'!$B$6:$H$148,7)","v":0},null,null,null,null,null,0,0,0,0]
[null,null,null,{"$f":"IF(C16=\"\",1,VLOOKUP(C16,'Gülle-Jaucheanfall-Daten'!$A$7:$B$143,2,FALSE))","v":1},{"$f":"VLOOKUP($D16,'Gülle-Jaucheanfall-Daten'!$B$6:$E$148,2)","v":"cbm/Platz"},{"$f":"VLOOKUP($D16,'Gülle-Jaucheanfall-Daten'!$B$6:$H$148,3)","v":0},{"$f":"VLOOKUP($D16,'Gülle-Jaucheanfall-Daten'!$B$6:$H$148,4)","v":0},{"$f":"VLOOKUP($D16,'Gülle-Jaucheanfall-Daten'!$B$6:$H$148,7)","v":0},null,null,null,null,null,0,0,0,0]
[null,null,null,{"$f":"IF(C17=\"\",1,VLOOKUP(C17,'Gülle-Jaucheanfall-Daten'!$A$7:$B$143,2,FALSE))","v":1},{"$f":"VLOOKUP($D17,'Gülle-Jaucheanfall-Daten'!$B$6:$E$148,2)","v":"cbm/Platz"},{"$f":"VLOOKUP($D17,'Gülle-Jaucheanfall-Daten'!$B$6:$H$148,3)","v":0},{"$f":"VLOOKUP($D17,'Gülle-Jaucheanfall-Daten'!$B$6:$H$148,4)","v":0},{"$f":"VLOOKUP($D17,'Gülle-Jaucheanfall-Daten'!$B$6:$H$148,7)","v":0},null,null,null,null,null,0,0,0,0]
[null,null,null,{"$f":"IF(C18=\"\",1,VLOOKUP(C18,'Gülle-Jaucheanfall-Daten'!$A$7:$B$143,2,FALSE))","v":1},{"$f":"VLOOKUP($D18,'Gülle-Jaucheanfall-Daten'!$B$6:$E$148,2)","v":"cbm/Platz"},{"$f":"VLOOKUP($D18,'Gülle-Jaucheanfall-Daten'!$B$6:$H$148,3)","v":0},{"$f":"VLOOKUP($D18,'Gülle-Jaucheanfall-Daten'!$B$6:$H$148,4)","v":0},{"$f":"VLOOKUP($D18,'Gülle-Jaucheanfall-Daten'!$B$6:$H$148,7)","v":0},null,null,null,null,null,0,0,0,0]
[null,null,null,{"$f":"IF(C19=\"\",1,VLOOKUP(C19,'Gülle-Jaucheanfall-Daten'!$A$7:$B$143,2,FALSE))","v":1},{"$f":"VLOOKUP($D19,'Gülle-Jaucheanfall-Daten'!$B$6:$E$148,2)","v":"cbm/Platz"},{"$f":"VLOOKUP($D19,'Gülle-Jaucheanfall-Daten'!$B$6:$H$148,3)","v":0},{"$f":"VLOOKUP($D19,'Gülle-Jaucheanfall-Daten'!$B$6:$H$148,4)","v":0},{"$f":"VLOOKUP($D19,'Gülle-Jaucheanfall-Daten'!$B$6:$H$148,7)","v":0},null,null,null,null,null,0,0,0,0]
[null,null,null,{"$f":"IF(C20=\"\",1,VLOOKUP(C20,'Gülle-Jaucheanfall-Daten'!$A$7:$B$143,2,FALSE))","v":1},{"$f":"VLOOKUP($D20,'Gülle-Jaucheanfall-Daten'!$B$6:$E$148,2)","v":"cbm/Platz"},{"$f":"VLOOKUP($D20,'Gülle-Jaucheanfall-Daten'!$B$6:$H$148,3)","v":0},{"$f":"VLOOKUP($D20,'Gülle-Jaucheanfall-Daten'!$B$6:$H$148,4)","v":0},{"$f":"VLOOKUP($D20,'Gülle-Jaucheanfall-Daten'!$B$6:$H$148,7)","v":0},null,null,null,null,null,0,0,0,0]
[null,null,null,{"$f":"IF(C21=\"\",1,VLOOKUP(C21,'Gülle-Jaucheanfall-Daten'!$A$7:$B$143,2,FALSE))","v":1},{"$f":"VLOOKUP($D21,'Gülle-Jaucheanfall-Daten'!$B$6:$E$148,2)","v":"cbm/Platz"},{"$f":"VLOOKUP($D21,'Gülle-Jaucheanfall-Daten'!$B$6:$H$148,3)","v":0},{"$f":"VLOOKUP($D21,'Gülle-Jaucheanfall-Daten'!$B$6:$H$148,4)","v":0},{"$f":"VLOOKUP($D21,'Gülle-Jaucheanfall-Daten'!$B$6:$H$148,7)","v":0},null,null,null,null,null,0,0,0,0]
[null,null,null,{"$f":"IF(C22=\"\",1,VLOOKUP(C22,'Gülle-Jaucheanfall-Daten'!$A$7:$B$143,2,FALSE))","v":1},{"$f":"VLOOKUP($D22,'Gülle-Jaucheanfall-Daten'!$B$6:$E$148,2)","v":"cbm/Platz"},{"$f":"VLOOKUP($D22,'Gülle-Jaucheanfall-Daten'!$B$6:$H$148,3)","v":0},{"$f":"VLOOKUP($D22,'Gülle-Jaucheanfall-Daten'!$B$6:$H$148,4)","v":0},{"$f":"VLOOKUP($D22,'Gülle-Jaucheanfall-Daten'!$B$6:$H$148,7)","v":0},null,null,null,null,null,0,0,0,0]
[null,null,null,{"$f":"IF(C23=\"\",1,VLOOKUP(C23,'Gülle-Jaucheanfall-Daten'!$A$7:$B$143,2,FALSE))","v":1},{"$f":"VLOOKUP($D23,'Gülle-Jaucheanfall-Daten'!$B$6:$E$148,2)","v":"cbm/Platz"},{"$f":"VLOOKUP($D23,'Gülle-Jaucheanfall-Daten'!$B$6:$H$148,3)","v":0},{"$f":"VLOOKUP($D23,'Gülle-Jaucheanfall-Daten'!$B$6:$H$148,4)","v":0},{"$f":"VLOOKUP($D23,'Gülle-Jaucheanfall-Daten'!$B$6:$H$148,7)","v":0},null,null,null,null,null,0,0,0,0]
[null,null,null,{"$f":"IF(C24=\"\",1,VLOOKUP(C24,'Gülle-Jaucheanfall-Daten'!$A$7:$B$143,2,FALSE))","v":1},{"$f":"VLOOKUP($D24,'Gülle-Jaucheanfall-Daten'!$B$6:$E$148,2)","v":"cbm/Platz"},{"$f":"VLOOKUP($D24,'Gülle-Jaucheanfall-Daten'!$B$6:$H$148,3)","v":0},{"$f":"VLOOKUP($D24,'Gülle-Jaucheanfall-Daten'!$B$6:$H$148,4)","v":0},{"$f":"VLOOKUP($D24,'Gülle-Jaucheanfall-Daten'!$B$6:$H$148,7)","v":0},null,null,null,null,null,0,0,0,0]
[null,null,null,{"$f":"IF(C25=\"\",1,VLOOKUP(C25,'Gülle-Jaucheanfall-Daten'!$A$7:$B$143,2,FALSE))","v":1},{"$f":"VLOOKUP($D25,'Gülle-Jaucheanfall-Daten'!$B$6:$E$148,2)","v":"cbm/Platz"},{"$f":"VLOOKUP($D25,'Gülle-Jaucheanfall-Daten'!$B$6:$H$148,3)","v":0},{"$f":"VLOOKUP($D25,'Gülle-Jaucheanfall-Daten'!$B$6:$H$148,4)","v":0},{"$f":"VLOOKUP($D25,'Gülle-Jaucheanfall-Daten'!$B$6:$H$148,7)","v":0},null,null,null,null,null,0,0,0,0]
[null,null,null,{"$f":"IF(C26=\"\",1,VLOOKUP(C26,'Gülle-Jaucheanfall-Daten'!$A$7:$B$143,2,FALSE))","v":1},{"$f":"VLOOKUP($D26,'Gülle-Jaucheanfall-Daten'!$B$6:$E$148,2)","v":"cbm/Platz"},{"$f":"VLOOKUP($D26,'Gülle-Jaucheanfall-Daten'!$B$6:$H$148,3)","v":0},{"$f":"VLOOKUP($D26,'Gülle-Jaucheanfall-Daten'!$B$6:$H$148,4)","v":0},{"$f":"VLOOKUP($D26,'Gülle-Jaucheanfall-Daten'!$B$6:$H$148,7)","v":0},null,null,null,null,null,0,0,0,0]
[]
[null,"weitere Tierarten (Wirtschaftsdüngeranfall belegen) "]
[null,null,null,null,"cbm/Platz",null,null,null,null,null,null,null,null,{"$f":"ROUND(F29*J29,1)","v":0},0,{"$f":"N29/365*(365-L29)","v":0},{"$f":"ROUND(O29/365*(365-M29),1)","v":0}]
[null,null,null,null,"cbm/Platz",null,null,null,null,null,null,null,null,0,0,{"$f":"N30/365*(365-L30)","v":0},{"$f":"ROUND(O30/365*(365-M30),1)","v":0}]
[null,null,null,null,"cbm/Platz",null,null,null,null,null,null,null,null,0,0,{"$f":"N31/365*(365-L31)","v":0},{"$f":"ROUND(O31/365*(365-M31),1)","v":0}]
[null,null,null,null,"cbm/Platz",null,null,null,null,null,null,null,null,0,0,{"$f":"N32/365*(365-L32)","v":0},{"$f":"ROUND(O32/365*(365-M32),1)","v":0}]
[null,null,null,null,"cbm/Platz",null,null,null,null,null,null,null,null,0,0,{"$f":"N33/365*(365-L33)","v":0},{"$f":"ROUND(O33/365*(365-M33),1)","v":0}]
[null,"weitere zu lagernde Stoffe"]
[null,"Gärrest  (nicht aus eigenem Anfall von Gülle)",null,null,"cbm"]
[null,"Niederschlagswasser Anfall pro Jahr",null,null,"cbm"]
[null,"Niederschlagswasser Anfall pro Jahr",null,null,"cbm"]
[null,"Reinigungswasser Anfall pro Jahr",null,null,"cbm"]
[null,"Reinigungswasser Anfall pro Jahr",null,null,"cbm"]

{"sheet":"Rechnung","index":4,"n_rows":37,"n_cols":14,"rows_kept":37,"cut":false,"hidden":true,"merged":[[5,13,5,14],[6,13,6,14],[3,6,3,9],[4,6,4,7],[4,8,4,9],[6,6,6,7],[6,8,6,9],[13,6,13,7],[13,8,13,9],[15,6,15,7],[15,8,15,9],[14,6,14,7],[14,8,14,9],[10,6,10,7],[10,8,10,9],[12,6,12,7],[12,8,12,9],[7,6,7,7],[7,8,7,9],[9,6,9,7],[9,8,9,9]]}
["Stickstoffanfall"]
[]
[]
[null,null,"Fläche","davon",null,"Bilanzfläche","Stickstoffanfall aus  Wi-Dung"]
[null,null,null,null,null,"fläche","Gülle ",null,"Gülle "]
[null,null,null,"ohne","ohne",null,"kg N gesamt brutto",null,"kg N gesamt netto"]
[null,null,"gesamt","Zu- und Abfuhr","Bilanzpflicht","gesamt",{"$f":"SUM('Anlage - Stickstoff'!I5:I38)","v":0},null,{"$f":"SUM('Anlage - Stickstoff'!K5:K38)","v":0}]
[null,null,"ha","ha",null,"ha","Festmist ",null,"Festmist "]
[null,"Ackerland",{"$f":"Betriebsdaten!H29","v":0},{"$f":"Betriebsdaten!H31","v":0},null,{"$f":"C9-D9","v":0},"kg N  gesamt brutto",null,"kg N gesamt netto"]
[null,"Grünland",{"$f":"Betriebsdaten!H33","v":0},{"$f":"Betriebsdaten!H35","v":0},{"$f":"Betriebsdaten!H36","v":0},{"$f":"C10-D10-E10","v":0},{"$f":"SUM('Anlage - Stickstoff'!J5:J38)","v":0},null,{"$f":"SUM('Anlage - Stickstoff'!L5:L38)","v":0}]
[null,"Gesamt LF",{"$f":"Betriebsdaten!H27","v":0},{"$f":"SUM(D9:D10)","v":0},{"$f":"SUM(E9:E10)","v":0},{"$f":"C11-D11-E11","v":0},"Wi-Dung gesamt ",null,"Wi-Dung gesamt "]
[null,null,null,null,null,null,"kg N  gesamt brutto",null,"kg N gesamt netto"]
[null,null,null,null,null,null,{"$f":"G10+G7","v":0},null,{"$f":"I10+I7","v":0}]
[null,null,null,null,null,null,"WiDu gesamt ",null,"WiDu gesamt "]
[null,null,null,null,null,null,"kg/ha N  gesamt brutto",null,"kg/ha N gesamt     netto"]
[null,null,null,null,null,null,{"$f":"ROUND(G13/F11,1)","v":{"$error":"#DIV/0!"}},null,{"$f":"ROUND(I13/F11,1)","v":{"$error":"#DIV/0!"}}]
[]
[]
[]
[]
[]
[]
["Gülle und Jaucheanfall"]
[]
[]
[null,null,null,null,null,null,null,"Anfall 12 Monate",null,null,null,null,"Brutto","Netto"]
[null,null,null,null,null,null,"Gülle",null,null,null,null,null,{"$f":"SUM('Anlage - Gülle-Jaucheanfall'!N5:N33)","v":0},{"$f":"SUM('Anlage - Gülle-Jaucheanfall'!P5:P33)","v":0}]
[null,null,null,null,null,null,"Jauche",null,null,null,null,null,{"$f":"SUM('Anlage - Gülle-Jaucheanfall'!O5:O33)","v":0},{"$f":"SUM('Anlage - Gülle-Jaucheanfall'!Q5:Q33)","v":0}]
[]
["Rinder","Rinder",null,null,null,null,null,null,null,null,null,null,{"$f":"SUM(M27:M29)","v":0},{"$f":"SUM(N27:N29)","v":0}]
["Schweine","Schweine"]
["Sonstige",null,null,null,null,null,"Gärrest",null,null,null,null,null,{"$f":"'Anlage - Gülle-Jaucheanfall'!Q35","v":0},{"$f":"'Anlage - Gülle-Jaucheanfall'!Q35","v":0}]
["Geflügel"]
[null,null,null,null,null,null,"Niederschlagswasser",null,null,null,null,null,{"$f":"'Anlage - Gülle-Jaucheanfall'!Q36+'Anlage - Gülle-Jaucheanfall'!Q37","v":0},{"$f":"'Anlage - Gülle-Jaucheanfall'!Q36+'Anlage - Gülle-Jaucheanfall'!Q37","v":0}]
[null,null,null,null,null,null,"Reinigungswasser",null,null,null,null,null,{"$f":"'Anlage - Gülle-Jaucheanfall'!Q38+'Anlage - Gülle-Jaucheanfall'!Q39","v":0},{"$f":"'Anlage - Gülle-Jaucheanfall'!Q38+'Anlage - Gülle-Jaucheanfall'!Q39","v":0}]
[null,null,null,null,null,null,null,null,null,null,null,null,{"$f":"SUM(M34:M35)","v":0},{"$f":"SUM(N34:N35)","v":0}]
[null,null,null,null,null,null,null,null,null,null,null,null,{"$f":"M35+M34+M32+M29+M28+M27","v":0},{"$f":"N35+N34+N32+N29+N28+N27","v":0}]

{"sheet":"Stickstoffdaten","index":5,"n_rows":212,"n_cols":6,"rows_kept":212,"cut":false,"hidden":true,"merged":[]}
[null,null,"Einheit","N","anrechenbare N-Menge"]
[null,null,null,"kg/Einheit","nach Lagerung"]
[null,null,null,null,"Gülle","and."]
[]
[]
[null,1,"kg/Platz",0]
["     Kälber; 0 - 16 Wochen (ohne Mastkälber), 80 kg Zuwachs, 3 Durchgänge/a (D)",2,"kg/Platz",15.3,0.85,0.7]
["Kälber; 0 - 3 Monate (ohne Mastkälber) (A)",3,"kg/Platz",15.4,0.85,0.7]
["Kälber; 3 - 6 Monate (ohne Mastkälber) (A)",4,"kg/Platz",44.6,0.85,0.7]
["     Kälber; 3 - 6 Monate Ackerfutterbau; mit Weide (ohne Mastkälber) (A)",5,"kg/Platz",32.6,0.85,0.7]
["     Kälber; 3 - 6 Monate Ackerfutterbau; Stallhaltung (ohne Mastkälber) (A)",6,"kg/Platz",26.6,0.85,0.7]
["     Kälber; 3 - 6 Monate Grünland - extensiv (ohne Mastkälber) (A)",7,"kg/Platz",40.6,0.85,0.7]
["     Kälber; 3 - 6 Monate Grünland - konventionell (ohne Mastkälber) (A)",8,"kg/Platz",44.6,0.85,0.7]
["Mastrind, Kalb; 0 - 3 Monate (A)",9,"kg/Platz",14.4,0.85,0.7]
["     Mastrind, Kalb; 0 - 3 Monate; bis 625 kg LM; 18 Monate (A)",10,"kg/Platz",14.4,0.85,0.7]
["     Mastrind, Kalb; 0 - 3 Monate; bis 700 kg LM; 18 Monate (A)",11,"kg/Platz",14.4,0.85,0.7]
["Mastrind, Kalb; 3 - 6 Monate (A)",12,"kg/Platz",25.7,0.85,0.7]
["     Mastrind, Kalb; 3 - 6 Monate; bis 625 kg LM; 18 Monate (A)",13,"kg/Platz",24.6,0.85,0.7]
["     Mastrind, Kalb; 3 - 6 Monate; bis 700 kg LM; 18 Monate (A)",14,"kg/Platz",25.7,0.85,0.7]
["Zuchtrinder; 0 - 6 Monate; allgemein",15,"kg/Platz",30,0.85,0.7]
["     Zuchtrinder;   0 - 6  Monate; Ackerfutterbau; mit Weide ",16,"kg/Platz",24,0.85,0.7]
["     Zuchtrinder;   0 - 6  Monate; Ackerfutterbau; Stallhaltung ",17,"kg/Platz",21,0.85,0.7]
["     Zuchtrinder;   0 - 6  Monate; Grünland; extensiv ",18,"kg/Platz",28,0.85,0.7]
["     Zuchtrinder;   0 - 6  Monate; Grünland; konventionell ",19,"kg/Platz",30,0.85,0.7]
["Zuchtrinder;   6 - 12 Monate;  allgemein (A)",20,"kg/Platz",49,0.85,0.7]
["     Zuchtrinder;   6 - 12 Monate; Ackerfutterbau; mit Weide (A)",21,"kg/Platz",40,0.85,0.7]
["     Zuchtrinder;   6 - 12 Monate; Ackerfutterbau; Stallhaltung (A)",22,"kg/Platz",35,0.85,0.7]
["     Zuchtrinder;   6 - 12 Monate; Grünland; extensiv (A)",23,"kg/Platz",44,0.85,0.7]
["     Zuchtrinder;   6 - 12 Monate; Grünland; konventionell (A)",24,"kg/Platz",49,0.85,0.7]
["Zuchtrinder; 12 - 24 Monate;  allgemein (A)",25,"kg/Platz",75,0.85,0.7]
["     Zuchtrinder; 12 - 24 Monate; Ackerfutterbau, Stallhaltung  (A)",26,"kg/Platz",53,0.85,0.7]
["     Zuchtrinder; 12 - 24 Monate; Ackerfutterbau; mit Weide (A)",27,"kg/Platz",61,0.85,0.7]
["     Zuchtrinder; 12 - 24 Monate; Grünland; extensiv (A)",28,"kg/Platz",67,0.85,0.7]
["     Zuchtrinder; 12 - 24 Monate; Grünland; konventionell (A)",29,"kg/Platz",75,0.85,0.7]
["Zuchtrinder; über 24 Monate;  allgemein (ohne Kühe)  (A)",30,"kg/Platz",85,0.85,0.7]
["     Zuchtrinder; über 24 Monate; Ackerfutterbau; mit Weide (ohne Kühe)  (A)",31,"kg/Platz",70,0.85,0.7]
["     Zuchtrinder; über 24 Monate; Ackerfutterbau; Stallhaltung (ohne Kühe) (A)",32,"kg/Platz",61,0.85,0.7]
["     Zuchtrinder; über 24 Monate; Grünland; extensiv (ohne Kühe) (A)",33,"kg/Platz",77,0.85,0.7]
["     Zuchtrinder; über 24 Monate; Grünland; konventionell (ohne Kühe) (A)",34,"kg/Platz",85,0.85,0.7]
["     Zuchtrinder, Erstkalbealter 27 Monate; 580 kg Zuwachs; Ackerfutterbau; Stallhaltung (D)",35,"kg/Platz",42.8,0.85,0.7]
["     Zuchtrinder, Erstkalbealter 27 Monate; 580 kg Zuwachs; Ackerfutterbau; mit Weide (D)",36,"kg/Platz",49.5,0.85,0.7]
["     Zuchtrinder, Erstkalbealter 27 Monate; 580 kg Zuwachs; Grünland; konventionell (D)",37,"kg/Platz",60,0.85,0.7]
["     Zuchtrinder, Erstkalbealter 27 Monate; 580 kg Zuwachs; Grünland; extensiv (D)",38,"kg/Platz",54.4,0.85,0.7]
["Bulle, Zucht, Milchvieh (A)",39,"kg/Platz",60,0.85,0.7]
["Milchkuh; Grünland (A)",40,"kg/Platz",131.69999999999999,0.85,0.7]
["     Milchkuh; Grünland;   5.000 kg ECM (D)",41,"kg/Platz",114.6,0.85,0.7]
["     Milchkuh; Grünland;   6.000 kg ECM (D)",42,"kg/Platz",119.4,0.85,0.7]
["     Milchkuh; Grünland;   7.000 kg ECM (D)",43,"kg/Platz",125.5,0.85,0.7]
["     Milchkuh; Grünland;   8.000 kg ECM (D)",44,"kg/Platz",131.69999999999999,0.85,0.7]
["     Milchkuh; Grünland;   9.000 kg ECM (D)",45,"kg/Platz",140.5,0.85,0.7]
["     Milchkuh; Grünland; 10.000 kg ECM (D)",46,"kg/Platz",149.4,0.85,0.7]
["Milchkuh; Grünland o. Weide mit Heu (A)",47,"kg/Platz",122.9,0.85,0.7]
["     Milchkuh; Grünland o. Weide mit Heu;    5.000 kg ECM (D)",48,"kg/Platz",92.6,0.85,0.7]
["     Milchkuh; Grünland o. Weide mit Heu;    6.000 kg ECM (D)",49,"kg/Platz",111.1,0.85,0.7]
["     Milchkuh; Grünland o. Weide mit Heu;    7.000 kg ECM (D)",50,"kg/Platz",117,0.85,0.7]
["     Milchkuh; Grünland o. Weide mit Heu;    8.000 kg ECM (D)",51,"kg/Platz",122.9,0.85,0.7]
["     Milchkuh; Grünland o. Weide mit Heu;    9.000 kg ECM (D)",52,"kg/Platz",126.9,0.85,0.7]
["     Milchkuh; Grünland o. Weide mit Heu;  10.000 kg ECM (D)",53,"kg/Platz",140.69999999999999,0.85,0.7]
["Milchkuh; Ackerfutter  (A)",54,"kg/Platz",117.9,0.85,0.7]
["     Milchkuh; Ackerfutter;   5.000 kg ECM (D)",55,"kg/Platz",101.1,0.85,0.7]
["     Milchkuh; Ackerfutter;   6.000 kg ECM (D)",56,"kg/Platz",103.9,0.85,0.7]
["     Milchkuh; Ackerfutter;   7.000 kg ECM (D)",57,"kg/Platz",111,0.85,0.7]
["     Milchkuh; Ackerfutter;   8.000 kg ECM (D)",58,"kg/Platz",117.9,0.85,0.7]
["     Milchkuh; Ackerfutter;   9.000 kg ECM (D)",59,"kg/Platz",127.9,0.85,0.7]
["     Milchkuh; Ackerfutter; 10.000 kg ECM ",60,"kg/Platz",138.1,0.85,0.7]
["Milchkuh; Ackerfutter o. Weide mit Heu (A)",61,"kg/Platz",114.9,0.85,0.7]
["     Milchkuh; Ackerfutter o. Weide mit Heu;   5.000 kg ECM (D)",62,"kg/Platz",92.4,0.85,0.7]
["     Milchkuh; Ackerfutter o. Weide mit Heu;   6.000 kg ECM (D)",63,"kg/Platz",99.8,0.85,0.7]
["     Milchkuh; Ackerfutter o. Weide mit Heu;   7.000 kg ECM (D)",64,"kg/Platz",107.4,0.85,0.7]
["     Milchkuh; Ackerfutter o. Weide mit Heu;   8.000 kg ECM (D)",65,"kg/Platz",114.9,0.85,0.7]
["     Milchkuh; Ackerfutter o. Weide mit Heu;   9.000 kg ECM (D)",66,"kg/Platz",125,0.85,0.7]
["     Milchkuh; Ackerfutter o. Weide mit Heu; 10.000 kg ECM (D)",67,"kg/Platz",135,0.85,0.7]
["Mutterkuh; allgemein (A)",68,"kg/Platz",105.6,0.85,0.7]
["     Mutterkuh; 0,9 Kälber/a, 700 kg LM; (310 kg Absetzgewicht) (D)",69,"kg/Platz",116.4,0.85,0.7]
["     Mutterkuh; 0,9 Kälber/a, 700 kg LM; (220 kg Absetzgewicht) (D)",70,"kg/Platz",105.6,0.85,0.7]
["     Mutterkuh; 0,9 Kälber/a, 500 kg LM; (180 kg Absetzgewicht) (D)",71,"kg/Platz",86.8,0.85,0.7]
["Bulle, Zucht, Mutterkuhhaltung",72,"kg/Platz",60,0.85,0.7]
["Mastrind; weiblich,    6 - 12 Monate; allgemein (A)",73,"kg/Platz",36,0.85,0.7]
["Mastrind; weiblich,  12 - 24 Monate; allgemein (A)",74,"kg/Platz",49,0.85,0.7]
["Mastrind; weiblich, über 24 Monate; allgemein (A)",75,"kg/Platz",49,0.85,0.7]
["Mastrind; männlich, 0 - 6 Monate; allgemein (A)",76,"kg/Platz",20,0.85,0.7]
["     Mastrind, männlich, 0 - 6 Monate, bis 625 kg LM, 18 Monate",77,"kg/Platz",18,0.85,0.7]
["     Mastrind, männlich, 0 - 6 Monate, bis 700 kg LM, 18 Monate",78,"kg/Platz",20,0.85,0.7]
["Mastrind; männlich, 6 - 12 Monate; allgemein (A)",79,"kg/Platz",41,0.85,0.7]
["     Mastrind, männlich, 6 - 12 Monate, bis 625 kg LM, 18 Monate",80,"kg/Platz",36,0.85,0.7]
["     Mastrind, männlich, 6 - 12 Monate, bis 700 kg LM, 18 Monate",81,"kg/Platz",41,0.85,0.7]
["Mastrind; männlich, 12 - 24 Monate; allgemein (A)",82,"kg/Platz",59,0.85,0.7]
["     Mastrind, männlich, 12 - 24 Monate, bis 625 kg LM, 18 Monate",83,"kg/Platz",49,0.85,0.7]
["     Mastrind, männlich, 12 - 24 Monate, bis 700 kg LM, 18 Monate",84,"kg/Platz",59,0.85,0.7]
["Mastrind; männlich, über 24 Monate; allgemein (A)",85,"kg/Platz",60,0.85,0.7]
["     Mastrind; männlich, über 24 Monate (einschl. Zuchtbullen); 700 kg LM",86,"kg/Platz",60,0.85,0.7]
["     Mastrind; männlich, ab   45 bis 625 kg LM (D)",87,"kg/Platz",35.299999999999997,0.85,0.7]
["     Mastrind; männlich, ab   45 bis 700 kg LM (D)",88,"kg/Platz",40.200000000000003,0.85,0.7]
["     Mastrind; männlich, ab   80 bis 700 kg LM (D)",89,"kg/Platz",44,0.85,0.7]
["     Mastrind; männlich, ab 200 bis 700 kg LM (D)",90,"kg/Platz",46,0.85,0.7]
["     Mastrind;  50 bis 250 kg LM; 2,1 Umtriebe/a (\"Kälbermast\") (D)",91,"kg/Platz",13,0.85,0.7]
["     Mastrind;  50 bis 350 kg LM; 1,3 Umtriebe/a (\"Kälbermast\") (D)",92,"kg/Platz",32.700000000000003,0.85,0.7]
["     Mastrind;  80 bis 220 kg LM; 2,5 Umtriebe/a (\"Fresser-Produktion\") (D)",93,"kg/Platz",18.399999999999999,0.85,0.7]
["     Mastrind;  80 bis 210 kg LM; 2,7 Umtriebe/a (\"Fresser-Produktion\") (D) N-/P-reduziert",94,"kg/Platz",15.3,0.85,0.7]
["Zuchtsau mit Ferkel (ohne Jungsauen); allgemein (A)",95,"kg/Platz",36.6,0.7,0.65]
["    Zuchtsauen ab 1. Belegung; 22 aufgezogene Ferkel; Standartfutter",96,"kg/Platz",22.1,0.7,0.65]
["    Zuchtsauen ab 1. Belegung; 22 aufgezogene Ferkel; N-/P-reduziert",97,"kg/Platz",20.9,0.7,0.65]
["    Zuchtsauen mit Ferkel bis 8 kg; 22 aufgezogene Ferkel; Standardfutter",98,"kg/Platz",26.3,0.7,0.65]
["    Zuchtsauen mit Ferkel bis 8 kg; 22 aufgezogene Ferkel; N-/P-reduziert",99,"kg/Platz",24.7,0.7,0.65]
["     Zuchtsau mit Ferkel bis   8 kg LM; 20 aufgez. Ferkel; 200 kg Zuwachs je Platz/a; Standardf. (D)",100,"kg/Platz",26.2,0.7,0.65]
["     Zuchtsau mit Ferkel bis   8 kg LM; 20 aufgez. Ferkel; 200 kg Zuwachs je Platz/a; N-/P-red. (D)",101,"kg/Platz",24.6,0.7,0.65]
["     Zuchtsau mit Ferkel bis   8 kg LM; 22 aufgez. Ferkel; 216 kg Zuwachs je Platz/a; Standardf.(D)",102,"kg/Platz",26.3,0.7,0.65]
["     Zuchtsau mit Ferkel bis   8 kg LM; 22 aufgez. Ferkel; 216 kg Zuwachs je Platz/a; N-/P-red. (D)",103,"kg/Platz",24.7,0.7,0.65]
["     Zuchtsau mit Ferkel bis 28 kg LM; 20 aufgez. Ferkel; 600 kg Zuwachs je Platz/a; Standardf. (D)",104,"kg/Platz",36.6,0.7,0.65]
["     Zuchtsau mit Ferkel bis 28 kg LM; 20 aufgez. Ferkel; 600 kg Zuwachs je Platz/a; N-/P-red. (D)",105,"kg/Platz",34.299999999999997,0.7,0.65]
["     Zuchtsau mit Ferkel bis 28 kg LM; 22 aufgez. Ferkel; 656 kg Zuwachs je Platz/a; Standardf. (D)",106,"kg/Platz",37.299999999999997,0.7,0.65]
["     Zuchtsau mit Ferkel bis 28 kg LM; 22 aufgez. Ferkel; 656 kg Zuwachs je Platz/a; N-/P-red. (D)",107,"kg/Platz",34.9,0.7,0.65]
["Ferkel; bis 20 kg; allgemein (A)",108,"kg/Platz",3.2,0.7,0.65]
["     Ferkel; bis 20 kg; 125 kg Zuwachs je Platz/a; Standardfutter (A)",109,"kg/Platz",3.2,0.7,0.65]
["     Ferkel; bis 20 kg; 125 kg Zuwachs je Platz/a; N-/P-reduziert (A)",110,"kg/Platz",3.1,0.7,0.65]
["     Ferkel; bis 28 kg; 130 kg Zuwachs je Platz/a; Standardfutter (D)",111,"kg/Platz",3.42,0.7,0.65]
["     Ferkel; bis 28 kg; 130 kg Zuwachs je Platz/a; N-/P-reduziert (D)",112,"kg/Platz",3.29,0.7,0.65]
["     Eberhaltung; 60 kg Zuwachs je Platz/a (D)",113,"kg/Platz",22.1,0.7,0.65]
["Jungsau; trächtig; allgemein, ab 1. Belegung  (A)",114,"kg/Platz",6.7,0.7,0.65]
["     Jungsau; trächtig; 105 kg Zuwachs/Platz; Standardfutter (A)",115,"kg/Platz",6.7,0.7,0.65]
["     Jungsau; trächtig; 105 kg Zuwachs/Platz; N-/P-reduziert (A)",116,"kg/Platz",5.9,0.7,0.65]
["     Jungsau; 28 bis 115 kg LM; 180 kg Zuwachs je Platz/a; Standardfutter (D)",117,"kg/Platz",10.8,0.7,0.65]
["     Jungsau; 28 bis 115 kg LM; 180 kg Zuwachs je Platz/a; N-/P-reduziert (D)",118,"kg/Platz",9,0.7,0.65]
["     Jungsau; 95 bis 135 kg LM; 240 kg Zuwachs je Platz/a; Standardfutter (D)",119,"kg/Platz",15.5,0.7,0.65]
["     Jungsau; 95 bis 135 kg LM; 240 kg Zuwachs je Platz/a; N-/P-reduziert (D)",120,"kg/Platz",13.3,0.7,0.65]
["Zuchtschweine; andere, 20 - 50 kg, allgemein (A)",121,"kg/Platz",10.8,0.7,0.65]
["Zuchtschweine; andere, ab 50 kg, allgemein (A)",122,"kg/Platz",13,0.7,0.65]
["   Zuchtschweine; 50 - 135 kg LM; 210 kg Zuwachs/Platz; Standardfutter",123,"kg/Platz",13,0.7,0.65]
["Jungschwein; Mast, 20 - 50 kg; allgemein (A)",124,"kg/Platz",10.8,0.7,0.65]
["     Jungschwein; Mast, 20 - 50 kg; 156 kg Zuwachs",125,"kg/Platz",7.9,0.7,0.65]
["     Jungschwein; Mast, 20 - 50 kg; 175 kg Zuwachs; Standardfutter (A)",126,"kg/Platz",8.4,0.7,0.65]
["     Jungschwein; Mast, 20 - 50 kg; 175 kg Zuwachs; N-/P-reduziert (A)",127,"kg/Platz",7.1,0.7,0.65]
["     Jungschwein; Mast, 20 - 50 kg; 223 kg Zuwachs; Standardfutter (A)",128,"kg/Platz",10.8,0.7,0.65]
["     Jungschwein; Mast, 20 - 50 kg; 223 kg Zuwachs; N-/P-reduziert (A)",129,"kg/Platz",9.1,0.7,0.65]
["Mastschwein (ab 50 kg); allgemein (A)",130,"kg/Platz",13.1,0.7,0.65]
["     Mastschwein (ab 50 kg); 218 kg Zuwachs; Standardfutter (A)",131,"kg/Platz",12.4,0.7,0.65]
["     Mastschwein (ab 50 kg); 218 kg Zuwachs; N-/P-reduziert (A)",132,"kg/Platz",10.199999999999999,0.7,0.65]
["     Mastschwein (ab 50 kg); 228 kg Zuwachs; Standardfutter (A)",133,"kg/Platz",13.1,0.7,0.65]
["     Mastschwein (ab 50 kg); 228 kg Zuwachs; N-/P-reduziert (A)",134,"kg/Platz",10.9,0.7,0.65]
["     Mastschwein; 28 bis 117 kg LM, 700 g tägliche Zunahme; 210 kg Zuwachs; Standardfutter (D)",135,"kg/Platz",11.9,0.7,0.65]
["     Mastschwein; 28 bis 117 kg LM, 700 g tägliche Zunahme; 210 kg Zuwachs; N-/P-reduziert (D)",136,"kg/Platz",9.8000000000000007,0.7,0.65]
["     Mastschwein; 28 bis 117 kg LM, 800 g tägliche Zunahme; 240 kg Zuwachs; Standardfutter (D)",137,"kg/Platz",13.6,0.7,0.65]
["     Mastschwein; 28 bis 117 kg LM, 800 g tägliche Zunahme; 240 kg Zuwachs; N-/P-reduziert (D)",138,"kg/Platz",11.2,0.7,0.65]
["Pferd; unter 6 Monate; allgemein (A)",139,"kg/Platz",31.6,null,0.55000000000000004]
["Pferd; über 6 Monate bis 3 Jahre; allgemein (A)",140,"kg/Platz",44.5,null,0.55000000000000004]
["Pferd; über 3 Jahre; allgemein  (A)",141,"kg/Platz",63.5,null,0.55000000000000004]
["     Pferd; Reitpferd; Zuchtstuten  0,5 Fohlen/a (600 kg LM); Stall-/Weidehaltung (D)",142,"kg/Platz",63.5,null,0.55000000000000004]
["     Pferd; Reitpferd; Aufzucht (365 kg Zuwachs); Stall-/Weidehaltung; 6. bis 36. Monat (D)",143,"kg/Platz",44.5,null,0.55000000000000004]
["     Pferd; Reitpferd; 500 bis 600 kg LM über 3 Jahre; Stallhaltung (D)",144,"kg/Platz",51.1,null,0.55000000000000004]
["     Pferd; Reitpferd; 500 bis 600 kg LM über 3 Jahre; Stall-/Weidehaltung (D)",145,"kg/Platz",53.6,null,0.55000000000000004]
["     Pferd; Pony; Kleinpferde und alle anderen Equiden; allgemein",146,"kg/Platz",42.4,null,0.55000000000000004]
["     Pferd; Pony; Zuchtstuten  0,5 Fohlen/a (350 kg LM); Stall-/Weidehaltung (D)",147,"kg/Platz",42.4,null,0.55000000000000004]
["     Pferd; Pony; Aufzucht (150 kg Zuwachs); Stall-/Weidehaltung; 6. bis 36. Monat (D)",148,"kg/Platz",31.6,null,0.55000000000000004]
["     Pferd; Pony; 300 kg LM über 3 Jahre; Stallhaltung (D)",149,"kg/Platz",34.9,null,0.55000000000000004]
["     Pferd; Pony; 300 kg LM über 3 Jahre; Stall-/Weidehaltung (D)",150,"kg/Platz",33.4,null,0.55000000000000004]
["Schaf; unter 1 Jahr und Hammel (A)",151,"kg/Platz",9.1999999999999993,null,0.55000000000000004]
["Schaf; Mutter; allgemein (A)",152,"kg/Platz",13.8,null,0.55000000000000004]
["     Schaf; Mutter; extensiv (A)",153,"kg/Platz",13.4,null,0.55000000000000004]
["     Schaf; Mutter; konventionell (A)",154,"kg/Platz",13.8,null,0.55000000000000004]
["     Schaf; Mutter mit Nachzucht; 1,3 Lämmer/Schaf; 40 kg Zuwachs; extensiv (D)",155,"kg/Platz",18.100000000000001,null,0.55000000000000004]
["     Schaf; Mutter mit Nachzucht; 1,3 Lämmer/Schaf; 40 kg Zuwachs; konventionell (D)",156,"kg/Platz",18.600000000000001,null,0.55000000000000004]
["Schaf; weibliche über 1 Jahr (ohne Mutterschafe)  (A)",157,"kg/Platz",12,null,0.55000000000000004]
["Schaf; andere über ein Jahr (A)",158,"kg/Platz",13.8,null,0.55000000000000004]
["Schaf; Lämmer; allgemein (A)",159,"kg/Platz",6.4,null,0.55000000000000004]
["     Schaf; Lämmer; extensiv (A)",160,"kg/Platz",6.1,null,0.55000000000000004]
["     Schaf; Lämmer; konventionell (A)",161,"kg/Platz",6.4,null,0.55000000000000004]
["Ziege; andere; allgemein (A)",162,"kg/Platz",8.4,null,0.55000000000000004]
["Ziege; Mutter; allgemein (A)",163,"kg/Platz",11.6,null,0.55000000000000004]
["     Ziege; Mutter; 800 kg Milch  (A)",164,"kg/Platz",11.6,null,0.55000000000000004]
["     Ziege; Milchziege mit Nachzucht; 800 kg Milch/a; 1,5 Lämmer je Ziege; 16 kg Zuwachs/Lamm (D)",165,"kg/Platz",14.8,null,0.55000000000000004]
["Kaninchen, Zucht; allgemein (A)",166,"kg/Platz",9.6999999999999993,null,0.55000000000000004]
["     Kaninchen; Aufzucht bis 0,6 kg LM, 52 aufgezogene Jungtiere/Häsin/a (D)",167,"kg/Platz",2.64,null,0.55000000000000004]
["     Kaninchen; Aufzucht bis 3 kg LM, 52 aufgezogene Jungtiere/Häsin/a (D)",168,"kg/Platz",9.66,null,0.55000000000000004]
["Kaninchen, Mast; allgemein (A)",169,"kg/Platz",9.6999999999999993,null,0.55000000000000004]
["     Kaninchen; Mast; 0,6 bis 3 kg LM; 14 kg Zuwachs/Platz (D)",170,"kg/Platz",0.73,null,0.55000000000000004]
["Damwild; allgemein",171,"kg/Platz",21.6,null,0.55000000000000004]
["Damwild; Fleischerzeugung 45 kg Zuwachs je (1 Alttier + 0,85 Kalb) (A/D)",172,"kg/Platz",21.6,null,0.55000000000000004]
["Sonstige Wildtierarten; allgemein (A)",173,"kg/Platz",21.6,null,0.55000000000000004]
["Legehennen; Küken und Junghennen unter 6 Monate; allgemein (A)",174,"kg/Platz",0.28599999999999998,null,0.6]
["    Legehennen; Aufzucht; 3,3 kg Zuwachs; 4 Phasen-Fütterung; Standardfutter (D)",175,"kg/Platz",0.28599999999999998,null,0.6]
["    Legehennen; Aufzucht; 3,3 kg Zuwachs; 5 Phasen-Fütterung; N-/P-reduziert (D)",176,"kg/Platz",0.24399999999999999,null,0.6]
["Legehennen; über 6 Monate; allgemein (A)",177,"kg/Platz",0.78600000000000003,null,0.6]
["    Legehennen; über 6 Monate, 17,6 kg Eimasse; Standardfutter (D)",178,"kg/Platz",0.78600000000000003,null,0.6]
["    Legehennen; über 6 Monate, 17,6 kg Eimasse; N-/P-reduziert (D)",179,"kg/Platz",0.754,null,0.6]
["Hähnchen, Mast; allgemein (A)",180,"kg/Platz",0.46800000000000003,null,0.6]
["    Hähnchen; Mast, - 37 Tage; 1,7 kg Zuwachs/Tier; Standardfutter (D)",181,"kg/Platz",0.31900000000000001,null,0.6]
["    Hähnchen: Mast, - 37 Tage; 1,7 kg Zuwachs/Tier; N-/P-reduziert (D)",182,"kg/Platz",0.26600000000000001,null,0.6]
["    Hähnchen; Mast, 37 - 40 Tage; 2,0 kg Zuwachs/Tier; Standardfutter (D)",183,"kg/Platz",0.39200000000000002,null,0.6]
["    Hähnchen; Mast, 37 - 40 Tage; 2,0 kg Zuwachs/Tier; N-/P-reduziert (D)",184,"kg/Platz",0.33300000000000002,null,0.6]
["    Hähnchen; Mast, 40 Tage; 2,2 kg Zuwachs/Tier; Standardfutter (D)",185,"kg/Platz",0.46899999999999997,null,0.6]
["    Hähnchen; Mast, 40 Tage; 2,2 kg Zuwachs/Tier; N-/P-reduziert  (D)",186,"kg/Platz",0.40300000000000002,null,0.6]
["Pute; Zucht, allgemein  (A)",187,"kg/Platz",2.1360000000000001,null,0.6]
["Pute; Mast, allgemein (A)",188,"kg/Platz",2.14,null,0.6]
["     Pute; Mast, Hähne; 20,4 kg Zuwachs; 22 Wochen (56,8 kg Futter) 2,2 Umtr.; Standardf. (D)",189,"kg/Platz",2.14,null,0.6]
["     Pute; Mast, Hähne; 20,4 kg Zuwachs; 22 Wochen (56,8 kg Futter) 2,2 Umtri.; N-/P-red. (D)",190,"kg/Platz",2.0019999999999998,null,0.6]
["     Pute; Mast, Hähne; 20,4 kg Zuwachs; 22 Wochen (56,8 kg Futter) 2,2 Umtr.; teilw. P-red. (D)",191,"kg/Platz",2.14,null,0.6]
["     Pute; Mast, Hennen; 10,9 kg Zuwachs; 17 Wochen (27,9 kg Futter) 2,8 Umtr.; Standardf. (D)",192,"kg/Platz",1.579,null,0.6]
["     Pute; Mast, Hennen; 10,9 kg Zuwachs; 17 Wochen (27,9 kg Futter) 2,8 Umtr.; N-/P-red. (D)",193,"kg/Platz",1.492,null,0.6]
["     Pute; Mast, Hennen; 10,9 kg Zuwachs; 17 Wochen (27,9 kg Futter) 2,8 Umtr.; teilw. P-red. (D)",194,"kg/Platz",1.5569999999999999,null,0.6]
["Ente; Zucht, allgemein (A)",195,"kg/Platz",1.488,null,0.6]
["Ente; Mast, allgemein (A)",196,"kg/Platz",1.482,null,0.6]
["     Ente; Flugenten; 15,4 kg Zuwachs/Platz/a; 4 Durchgänge; (w:m= 1:1)  (D)",197,"kg/Platz",0.58799999999999997,null,0.6]
["     Ente; Pekingenten (Ausmast); 3,4 kg Zuwachs/Tier; 13 Durchgänge bis 26 Tage Mast (D)",198,"kg/Platz",1.482,null,0.6]
["Gans; Zucht, allgemein (A)",199,"kg/Platz",1.044,null,0.6]
["Gans; Mast, allgemein (A)",200,"kg/Platz",1.04,null,0.6]
["     Gans; Schnellmast; 5,0 kg Zuwachs/Tier (D)",201,"kg/Platz",0.183,null,0.6]
["     Gans; Mittelmast; 6,8 kg Zuwachs/Tier  (D)",202,"kg/Platz",0.55400000000000005,null,0.6]
["     Gans; Spät-/Weidemast; 7,8 kg Zuwachs/Tier (D)",203,"kg/Platz",1.04,null,0.6]
["Geflügel, Perlhühner; allgemein (A)",204,"kg/Platz",0.156,null,0.6]
["Geflügel, Wachtel; allgemein (A)",205,"kg/Platz",3.5999999999999997E-2,null,0.6]
["Strauss über 3 Monate",206,"kg/Platz",24,null,0.6]
["Strauss bis 13 Monate",207,"kg/Platz",11,null,0.6]

{"sheet":"Gülle-Jaucheanfall-Daten","index":6,"n_rows":143,"n_cols":8,"rows_kept":143,"cut":false,"hidden":true,"merged":[[1,5,2,5],[1,6,2,6],[3,5,3,6],[1,0,3,0],[1,2,3,2],[1,3,2,3],[1,4,2,4],[3,3,3,4]]}
["Anlage 1: Datenerfassungsbeleg für den Anfall von flüssigen Wirtschaftsdüngern "]
["Tierart",null,"Einheit","Gülle-anfall ","Jauche-anfall","Gülle-anfall ","Jauche-anfall","Gülle "]
[null,null,null,null,null,null,null,"TM"]
[null,null,null,"in 12 Monaten      je Stallplatz cbm",null,"in 6 Monaten      je Stallplatz cbm",null,"Standard"]
[]
[null,1,"cbm/Platz",{"$f":"F6*2","v":0},{"$f":"G6*2","v":0},0,0,0]
["     Kälber; 0 - 16 Wochen (ohne Mastkälber), 80 kg Zuwachs, 3 Durchgänge/a (D)",2,"cbm/Platz",{"$f":"F7*2","v":3},{"$f":"G7*2","v":1.2},1.5,0.6,6]
["Kälber; 0 - 3 Monate (ohne Mastkälber) (A)",3,"cbm/Platz",4.2,1.2,2.1,0.6,6]
["Kälber; 3 - 6 Monate (ohne Mastkälber) (A)",4,"cbm/Platz",4.2,1.2,2.1,0.6,6]
["     Kälber; 3 - 6 Monate Ackerfutterbau; mit Weide (ohne Mastkälber) (A)",5,"cbm/Platz",4.2,1.2,2.1,0.6]
["     Kälber; 3 - 6 Monate Ackerfutterbau; Stallhaltung (ohne Mastkälber) (A)",6,"cbm/Platz",4.2,1.2,2.1,0.6]
["     Kälber; 3 - 6 Monate Grünland - extensiv (ohne Mastkälber) (A)",7,"cbm/Platz",4.2,1.2,2.1,0.6]
["     Kälber; 3 - 6 Monate Grünland - konventionell (ohne Mastkälber) (A)",8,"cbm/Platz",4.2,1.2,2.1,0.6]
["Mastrind, Kalb; 0 - 3 Monate (A)",9,"cbm/Platz",3.36,1.32,1.68,0.66]
["     Mastrind, Kalb; 0 - 3 Monate; bis 625 kg LM; 18 Monate (A)",10,"cbm/Platz",3.36,1.32,1.68,0.66]
["     Mastrind, Kalb; 0 - 3 Monate; bis 700 kg LM; 18 Monate (A)",11,"cbm/Platz",3.36,1.32,1.68,0.66]
["Mastrind, Kalb; 3 - 6 Monate (A)",12,"cbm/Platz",4.2,1.32,2.1,0.66]
["     Mastrind, Kalb; 3 - 6 Monate; bis 625 kg LM; 18 Monate (A)",13,"cbm/Platz",4.2,1.32,2.1,0.66]
["     Mastrind, Kalb; 3 - 6 Monate; bis 700 kg LM; 18 Monate (A)",14,"cbm/Platz",4.2,1.36,2.1,0.68]
["Zuchtrinder; 0 - 6 Monate; allgemein",15,"cbm/Platz",3.78,1.28,1.89,0.64]
["     Zuchtrinder;   0 - 6  Monate; Ackerfutterbau; mit Weide ",16,"cbm/Platz",{"$f":"F21*2","v":3.78},1.28,1.89,0.64]
["     Zuchtrinder;   0 - 6  Monate; Ackerfutterbau; Stallhaltung ",17,"cbm/Platz",3.78,1.28,1.89,0.64]
["     Zuchtrinder;   0 - 6  Monate; Grünland; extensiv ",18,"cbm/Platz",3.78,1.28,1.89,0.64]
["     Zuchtrinder;   0 - 6  Monate; Grünland; konventionell ",19,"cbm/Platz",3.78,1.28,1.89,0.64]
["Zuchtrinder;   6 - 12 Monate;  allgemein (A)",20,"cbm/Platz",6.72,2,3.36,1]
["     Zuchtrinder;   6 - 12 Monate; Ackerfutterbau; mit Weide (A)",21,"cbm/Platz",6.72,2,3.36,1]
["     Zuchtrinder;   6 - 12 Monate; Ackerfutterbau; Stallhaltung (A)",22,"cbm/Platz",6.72,2,3.36,1]
["     Zuchtrinder;   6 - 12 Monate; Grünland; extensiv (A)",23,"cbm/Platz",6.72,2,3.36,1]
["     Zuchtrinder;   6 - 12 Monate; Grünland; konventionell (A)",24,"cbm/Platz",6.72,2,3.36,1]
["Zuchtrinder; 12 - 24 Monate;  allgemein (A)",25,"cbm/Platz",12,2.88,6,1.44]
["     Zuchtrinder; 12 - 24 Monate; Ackerfutterbau, Stallhaltung  (A)",26,"cbm/Platz",12,2.88,6,1.44]
["     Zuchtrinder; 12 - 24 Monate; Ackerfutterbau; mit Weide (A)",27,"cbm/Platz",12,2.88,6,1.44]
["     Zuchtrinder; 12 - 24 Monate; Grünland; extensiv (A)",28,"cbm/Platz",12,2.88,6,1.44]
["     Zuchtrinder; 12 - 24 Monate; Grünland; konventionell (A)",29,"cbm/Platz",12,2.88,6,1.44]
["Zuchtrinder; über 24 Monate;  allgemein (ohne Kühe)  (A)",30,"cbm/Platz",15.84,5,7.92,2.5]
["     Zuchtrinder; über 24 Monate; Ackerfutterbau; mit Weide (ohne Kühe)  (A)",31,"cbm/Platz",15.84,5,7.92,2.5]
["     Zuchtrinder; über 24 Monate; Ackerfutterbau; Stallhaltung (ohne Kühe) (A)",32,"cbm/Platz",15.84,5,7.92,2.5]
["     Zuchtrinder; über 24 Monate; Grünland; extensiv (ohne Kühe) (A)",33,"cbm/Platz",15.84,5,7.92,2.5]
["     Zuchtrinder; über 24 Monate; Grünland; konventionell (ohne Kühe) (A)",34,"cbm/Platz",15.84,5,7.92,2.5]
["     Zuchtrinder, Erstkalbealter 27 Monate; 580 kg Zuwachs; Ackerfutterbau; Stallhaltung (D)",35,"cbm/Platz",9.3000000000000007,2.4,4.6500000000000004,1.2]
["     Zuchtrinder, Erstkalbealter 27 Monate; 580 kg Zuwachs; Ackerfutterbau; mit Weide (D)",36,"cbm/Platz",9.3000000000000007,2.4,4.6500000000000004,1.2]
["     Zuchtrinder, Erstkalbealter 27 Monate; 580 kg Zuwachs; Grünland; konventionell (D)",37,"cbm/Platz",9.3000000000000007,2.4,4.6500000000000004,1.2]
["     Zuchtrinder, Erstkalbealter 27 Monate; 580 kg Zuwachs; Grünland; extensiv (D)",38,"cbm/Platz",9.3000000000000007,2.4,4.6500000000000004,1.2]
["Bulle, Zucht, Milchvieh (A)",39,"cbm/Platz",12,5.4,6,2.7]
["Milchkuh; Grünland (A)",40,"cbm/Platz",20,6.4,10,3.2]
["     Milchkuh; Grünland;   5.000 kg ECM (D)",41,"cbm/Platz",19,6,9.5,3]
["     Milchkuh; Grünland;   6.000 kg ECM (D)",42,"cbm/Platz",19,6,9.5,3]
["     Milchkuh; Grünland;   7.000 kg ECM (D)",43,"cbm/Platz",19,6,9.5,3]
["     Milchkuh; Grünland;   8.000 kg ECM (D)",44,"cbm/Platz",20,6.4,10,3.2]
["     Milchkuh; Grünland;   9.000 kg ECM (D)",45,"cbm/Platz",20,6.4,10,3.2]
["     Milchkuh; Grünland; 10.000 kg ECM (D)",46,"cbm/Platz",21,6.8,10.5,3.4]
["Milchkuh; Grünland o. Weide mit Heu (A)",47,"cbm/Platz",20,6.4,10,3.2]
["     Milchkuh; Grünland o. Weide mit Heu;  5.000 kg ECM (D)",48,"cbm/Platz",19,6,9.5,3]
["     Milchkuh; Grünland o. Weide mit Heu;  6.000 kg ECM (D)",49,"cbm/Platz",19,6,9.5,3]
["     Milchkuh; Grünland o. Weide mit Heu;  7.000 kg ECM (D)",50,"cbm/Platz",19,6,9.5,3]
["     Milchkuh; Grünland o. Weide mit Heu;  8.000 kg ECM (D)",51,"cbm/Platz",20,6.4,10,3.2]
["     Milchkuh; Grünland o. Weide mit Heu;  9.000 kg ECM (D)",52,"cbm/Platz",20,6.4,10,3.2,11]
["     Milchkuh; Grünland o. Weide mit Heu;  10.000 kg ECM (D)",53,"cbm/Platz",{"$f":"F58*2","v":21},6.8,10.5,3.4]
["Milchkuh; Ackerfutter  (A)",54,"cbm/Platz",20,6.4,10,3.2]
["     Milchkuh; Ackerfutter;   5.000 kg ECM (D)",55,"cbm/Platz",19,6,9.5,3]
["     Milchkuh; Ackerfutter;   6.000 kg ECM (D)",56,"cbm/Platz",19,6,9.5,3]
["     Milchkuh; Ackerfutter;   7.000 kg ECM (D)",57,"cbm/Platz",19,6,9.5,3]
["     Milchkuh; Ackerfutter;   8.000 kg ECM (D)",58,"cbm/Platz",20,6.4,10,3.2,11]
["     Milchkuh; Ackerfutter;   9.000 kg ECM (D)",59,"cbm/Platz",20,6.4,10,3.2,11]
["     Milchkuh; Ackerfutter; 10.000 kg ECM ",60,"cbm/Platz",21,6.8,10.5,3.4]
["Milchkuh; Ackerfutter o. Weide mit Heu (A)",61,"cbm/Platz",20,6.4,10,3.2]
["     Milchkuh; Ackerfutter o. Weide mit Heu;   5.000 kg ECM (D)",62,"cbm/Platz",19,6,9.5,3]
["     Milchkuh; Ackerfutter o. Weide mit Heu;   6.000 kg ECM (D)",63,"cbm/Platz",19,6,9.5,3]
["     Milchkuh; Ackerfutter o. Weide mit Heu;   7.000 kg ECM (D)",64,"cbm/Platz",19,6,9.5,3]
["     Milchkuh; Ackerfutter o. Weide mit Heu;   8.000 kg ECM (D)",65,"cbm/Platz",20,6.4,10,3.2]
["     Milchkuh; Ackerfutter o. Weide mit Heu;   9.000 kg ECM (D)",66,"cbm/Platz",20,6.4,10,3.2]
["     Milchkuh; Ackerfutter o. Weide mit Heu; 10.000 kg ECM (D)",67,"cbm/Platz",21,6.8,10.5,3.4]
["Mutterkuh; allgemein (A)",68,"cbm/Platz",20,6,10,3]
["     Mutterkuh; 0,9 Kälber/a, 700 kg LM; (310 kg Absetzgewicht) (D)",69,"cbm/Platz",20,6,10,3]
["     Mutterkuh; 0,9 Kälber/a, 700 kg LM; (220 kg Absetzgewicht) (D)",70,"cbm/Platz",20,6,10,3]
["     Mutterkuh; 0,9 Kälber/a, 500 kg LM; (180 kg Absetzgewicht) (D)",71,"cbm/Platz",16,5.5,8,2.75]
["Bulle, Zucht, Mutterkuhhaltung",72,"cbm/Platz",12,5.4,6,2.7]
["Mastrind; weiblich,    6 - 12 Monate; allgemein (A)",73,"cbm/Platz",7.56,2.64,3.78,1.32]
["Mastrind; weiblich,  12 - 24 Monate; allgemein (A)",74,"cbm/Platz",10.56,5.04,5.28,2.52]
["Mastrind; weiblich, über 24 Monate; allgemein (A)",75,"cbm/Platz",12,5.4,6,2.7]
["Mastrind; männlich, 0 - 6 Monate; allgemein (A)",76,"cbm/Platz",3.78,1.28,1.89,0.64,10]
["     Mastrind, männlich, 0 - 6 Monate, bis 625 kg LM, 18 Monate",77,"cbm/Platz",3.3,1.2,1.65,0.6,10]
["     Mastrind, männlich, 0 - 6 Monate, bis 700 kg LM, 18 Monate",78,"cbm/Platz",3.78,1.28,1.89,0.64,10]
["Mastrind; männlich, 6 - 12 Monate; allgemein (A)",79,"cbm/Platz",7.56,2.64,3.78,1.32]
["     Mastrind, männlich, 6 - 12 Monate, bis 625 kg LM, 18 Monate",80,"cbm/Platz",6.76,2.36,3.38,1.18]
["     Mastrind, männlich, 6 - 12 Monate, bis 700 kg LM, 18 Monate",81,"cbm/Platz",7.56,2.64,3.78,1.32]
["Mastrind; männlich, 12 - 24 Monate; allgemein (A)",82,"cbm/Platz",{"$f":"F87*2","v":10.8},{"$f":"G87*2","v":4.5},5.4,2.25]
["     Mastrind, männlich, 12 - 24 Monate, bis 625 kg LM, 18 Monate",83,"cbm/Platz",9.4,4.3,4.7,2.15]
["     Mastrind, männlich, 12 - 24 Monate, bis 700 kg LM, 18 Monate",84,"cbm/Platz",10.8,4.5,5.4,2.25]
["Mastrind; männlich, über 24 Monate; allgemein (A)",85,"cbm/Platz",12,5,6,2.5]
["     Mastrind; männlich, über 24 Monate (einschl. Zuchtbullen); 700 kg LM",86,"cbm/Platz",7.7,3,3.85,1.5]
["     Mastrind; männlich, ab   45 bis 625 kg LM (D)",87,"cbm/Platz",6.7,2.4,3.35,1.2]
["     Mastrind; männlich, ab   45 bis 700 kg LM (D)",88,"cbm/Platz",7.3,3,3.65,1.5]
["     Mastrind; männlich, ab   80 bis 700 kg LM (D)",89,"cbm/Platz",6.7,3,3.35,1.5]
["     Mastrind; männlich, ab 200 bis 700 kg LM (D)",90,"cbm/Platz",7.7,3,3.85,1.5]
["     Mastrind;  50 bis 250 kg LM; 2,1 Umtriebe/a (\"Kälbermast\") (D)",91,"cbm/Platz",2.5,0,1.25,0]
["     Mastrind;  50 bis 350 kg LM; 1,3 Umtriebe/a (\"Kälbermast\") (D)",92,"cbm/Platz",3,0,1.5,0]
["     Mastrind;  80 bis 220 kg LM; 2,5 Umtriebe/a (\"Fresser-Produktion\") (D)",93,"cbm/Platz",5.5,0,2.75,0]
["     Mastrind;  80 bis 220 kg LM; 2,5 Umtriebe/a (\"Fresser-Produktion\") (D) N-/P-reduziert",94,"cbm/Platz",{"$f":"F99*2","v":5.5},{"$f":"G99*2","v":0},2.75,0]
["Zuchtsau mit Ferkel (ohne Jungsauen); allgemein (A)",95,"cbm/Platz",{"$f":"F100*2","v":6},1.5,3,0.75]
["    Zuchtsauen ab 1. Belegung; 22 aufgezogene Ferkel; Standartfutter ",96,"cbm/Platz",3.12,0.96,1.56,0.48]
["    Zuchtsauen ab 1. Belegung; 22 aufgezogene Ferkel; N-/P-reduziert ",97,"cbm/Platz",3.12,0.96,1.56,0.48]
["    Zuchtsauen mit Ferkel bis 8 kg; 22 aufgezogene Ferkel; Standardfutter",98,"cbm/Platz",3.12,0.96,1.56,0.48]
["    Zuchtsauen mit Ferkel bis 8 kg; 22 aufgezogene Ferkel; N-/P-reduziert",99,"cbm/Platz",3.12,0.96,1.56,0.48]
["     Zuchtsau mit Ferkel bis   8 kg LM; 20 aufgez. Ferkel; 200 kg Zuwachs je Platz/a; Standardf. (D)",100,"cbm/Platz",4,1.2,2,0.6]
["     Zuchtsau mit Ferkel bis   8 kg LM; 20 aufgez. Ferkel; 200 kg Zuwachs je Platz/a; N-/P-red. (D)",101,"cbm/Platz",4,1.2,2,0.6]
["     Zuchtsau mit Ferkel bis   8 kg LM; 22 aufgez. Ferkel; 216 kg Zuwachs je Platz/a; Standardf.(D)",102,"cbm/Platz",4,1.2,2,0.6,4]
["     Zuchtsau mit Ferkel bis   8 kg LM; 22 aufgez. Ferkel; 216 kg Zuwachs je Platz/a; N-/P-red. (D)",103,"cbm/Platz",4,1.2,2,0.6]
["     Zuchtsau mit Ferkel bis 28 kg LM; 20 aufgez. Ferkel; 600 kg Zuwachs je Platz/a; Standardf. (D)",104,"cbm/Platz",6,1.5,3,0.75]
["     Zuchtsau mit Ferkel bis 28 kg LM; 20 aufgez. Ferkel; 600 kg Zuwachs je Platz/a; N-/P-red. (D)",105,"cbm/Platz",6,1.5,3,0.75]
["     Zuchtsau mit Ferkel bis 28 kg LM; 22 aufgez. Ferkel; 656 kg Zuwachs je Platz/a; Standardf. (D)",106,"cbm/Platz",6,1.5,3,0.75]
["     Zuchtsau mit Ferkel bis 28 kg LM; 22 aufgez. Ferkel; 656 kg Zuwachs je Platz/a; N-/P-red. (D)",107,"cbm/Platz",6,1.5,3,0.75]
["Ferkel; bis 20 kg; allgemein (A)",108,"cbm/Platz",0.5,0.24,0.25,0.12]
["     Ferkel; bis 20 kg; 125 kg Zuwachs je Platz/a; Standardfutter (A)",109,"cbm/Platz",0.5,0.24,0.25,0.12]
["     Ferkel; bis 20 kg; 125 kg Zuwachs je Platz/a; N-/P-reduziert (A)",110,"cbm/Platz",0.5,0.24,0.25,0.12]
["     Ferkel; bis 28 kg; 130 kg Zuwachs je Platz/a; Standardfutter (D)",111,"cbm/Platz",0.6,0.3,0.3,0.15,4]
["     Ferkel; bis 28 kg; 130 kg Zuwachs je Platz/a; N-/P-reduziert (D)",112,"cbm/Platz",0.6,0.3,0.3,0.15]
["     Eberhaltung; 60 kg Zuwachs je Platz/a (D)",113,"cbm/Platz",3.6,1.5,1.8,0.75]
["Jungsau; trächtig; allgemein, ab 1. Belegung  (A)",114,"cbm/Platz",1.8,0.6,0.9,0.3]
["     Jungsau; trächtig; 105 kg Zuwachs/Platz; Standardfutter (A)",115,"cbm/Platz",1.8,0.6,0.9,0.3]
["     Jungsau; trächtig; 105 kg Zuwachs/Platz; N-/P-reduziert (A)",116,"cbm/Platz",1.8,0.6,0.9,0.3]
["     Jungsau; 28 bis 115 kg LM; 180 kg Zuwachs je Platz/a; Standardfutter (D)",117,"cbm/Platz",1.8,0.6,0.9,0.3,6]
["     Jungsau; 28 bis 115 kg LM; 180 kg Zuwachs je Platz/a; N-/P-reduziert (D)",118,"cbm/Platz",1.8,0.6,0.9,0.3]
["     Jungsau; 95 bis 135 kg LM; 240 kg Zuwachs je Platz/a; Standardfutter (D)",119,"cbm/Platz",2.5,1,1.25,0.5]
["     Jungsau; 95 bis 135 kg LM; 240 kg Zuwachs je Platz/a; N-/P-reduziert (D)",120,"cbm/Platz",2.5,1,1.25,0.5]
["Zuchtschweine; andere, 20 - 50 kg, allgemein (A)",121,"cbm/Platz",1,0.48,0.5,0.24]
["Zuchtschweine; andere, ab 50 kg, allgemein (A)",122,"cbm/Platz",1.5,0.6,0.75,0.3]
["   Zuchtschweine; 50 - 135 kg LM; 210 kg Zuwachs/Platz; Standardfutter",123,"cbm/Platz",1.5,0.6,0.75,0.3]
["Jungschwein; Mast, 20 - 50 kg; allgemein (A)",124,"cbm/Platz",1,0.48,0.5,0.24]
["     Jungschwein; Mast, 20 - 50 kg; 156 kg Zuwachs",125,"cbm/Platz",1,0.48,0.5,0.24]
["     Jungschwein; Mast, 20 - 50 kg; 175 kg Zuwachs; Standardfutter (A)",126,"cbm/Platz",1,0.48,0.5,0.24]
["     Jungschwein; Mast, 20 - 50 kg; 175 kg Zuwachs; N-/P-reduziert (A)",127,"cbm/Platz",1,0.48,0.5,0.24]
["     Jungschwein; Mast, 20 - 50 kg; 223 kg Zuwachs; Standardfutter (A)",128,"cbm/Platz",1.2,0.56000000000000005,0.6,0.28000000000000003]
["     Jungschwein; Mast, 20 - 50 kg; 223 kg Zuwachs; N-/P-reduziert (A)",129,"cbm/Platz",1.2,0.56000000000000005,0.6,0.28000000000000003]
["Mastschwein (ab 50 kg); allgemein (A)",130,"cbm/Platz",1.5,0.6,0.75,0.3]
["     Mastschwein (ab 50 kg); 218 kg Zuwachs; Standardfutter (A)",131,"cbm/Platz",1.5,0.6,0.75,0.3]
["     Mastschwein (ab 50 kg); 218 kg Zuwachs; N-/P-reduziert (A)",132,"cbm/Platz",1.5,0.6,0.75,0.3]
["     Mastschwein (ab 50 kg); 228 kg Zuwachs; Standardfutter (A)",133,"cbm/Platz",1.5,0.6,0.75,0.3]
["     Mastschwein (ab 50 kg); 228 kg Zuwachs; N-/P-reduziert (A)",134,"cbm/Platz",1.5,0.6,0.75,0.3]
["     Mastschwein; 28 bis 117 kg LM, 700 g tägliche Zunahme; 210 kg Zuwachs; Standardfutter (D)",135,"cbm/Platz",1.5,0.6,0.75,0.3]
["     Mastschwein; 28 bis 117 kg LM, 700 g tägliche Zunahme; 210 kg Zuwachs; N-/P-reduziert (D)",136,"cbm/Platz",1.5,0.6,0.75,0.3,6]
["     Mastschwein; 28 bis 117 kg LM, 800 g tägliche Zunahme; 240 kg Zuwachs; Standardfutter (D)",137,"cbm/Platz",1.5,0.6,0.75,0.3]
["     Mastschwein; 28 bis 117 kg LM, 800 g tägliche Zunahme; 240 kg Zuwachs; N-/P-reduziert (D)",138,"cbm/Platz",1.5,0.6,0.75,0.3]